Workbook

Sheet Indice
B1: Sociedad: | C1: ATLANTIC S.A.E.
S2: 1 | T2: Enero
S3: 2 | T3: Febrero
S4: 3 | T4: Marzo
S5: 4 | T5: Abril
A6: Fecha Presentación: | B6: 2021-09-30 | S6: 5 | T6: Mayo
S7: 6 | T7: Junio
S8: 7 | T8: Julio
C9: INDICE | D9: REF. | S9: 8 | T9: Agosto
B10: Informacion General | S10: 9 | T10: Septiembre
C11: Descripción de la naturaleza y del negocio de la Sociedad | D11: Nota 1 | S11: 10 | T11: Octubre
C12: Resumen de las principales políticas contables | D12: Nota 2 | S12: 11 | T12: Noviembre
B13: Balance General | D13: BG | S13: 12 | T13: Diciembre
C14: Efectivo y equivalente de efectivo | D14: Nota 3
C15: Inversiones temporales | D15: Nota 4
C16: Cuentas por cobrar comerciales | D16: Nota 5
C17: Otros créditos | D17: Nota 6
C18: Cuentas por cobrar comerciales | D18: Nota 5
C19: Inventarios | D19: Nota 7
C20: Inversión en asociadas | D20: Nota 8
C21: Propiedades, planta y equipo | D21: Nota 9
C22: Activos disponibles para la venta | D22: Nota 10
C23: Activos intangibles | D23: Nota 11
C24: Goodwill | D24: Nota 12
C25: Cuentas por pagar comerciales | D25: Nota 13
C26: Préstamos a corto plazo | D26: Nota 14
C27: Porción corriente de la deuda a largo plazo | D27: Nota 15
C28: Remuneraciones y cargas sociales a pagar | D28: Nota 16
C29: Impuestos a pagar | D29: Nota 17
C30: Provisiones | D30: Nota 18
C31: Otros pasivos corrientes | D31: Nota 19
C32: Prestamos a largo plazo | D32: Nota 14
C33: Otros pasivos no corrientes | D33: Nota 19
C34: Capital integrado | D34: Nota 20
C35: Reserva de revalúo | D35: Nota 21
C36: Reserva legal | D36: Nota 21
C37: Reservas estatutarias | D37: Nota 21
C38: Reservas facultativas | D38: Nota 21
C39: Diferencia transitoria por conversión | D39: Nota 22
C40: Resultados acumulados | D40: Nota 23
C41: Interés minoritario | D41: Nota 24
B42: Estado de Resultados | D42: ER
C43: Ventas | D43: Nota 25
C44: Costo de ventas | D44: Nota 26
C45: Gastos de ventas | D45: Nota 27
C46: Gastos administrativos | D46: Nota 27
C47: Otros ingresos y gastos operativos | D47: Nota 28
C48: Ingresos financieros - neto | D48: Nota 29
C49: Gastos financieros - neto | D49: Nota 29
C50: Resultado de inversiones en asociadas | D50: Nota 30
C51: Resultado participación minoritaria | D51: Nota 31
C52: Impuesto a la renta | D52: Nota 32
C53: Resultado extraordinario neto de impuesto a la renta | D53: Nota 33
C54: Resultado sobre actividades discontinuadas neto de impuesto a la renta | D54: Nota 34
C55: Utilidad/(Pérdida) neta del año | D55: Nota 35
C56: Utilidad neta por acción ordinaria | D56: Nota 35
B57: Estado de Evolución del Patrimonio Neto | D57: EVPN
B58: Estado de Flujos de Efectivo | D58: EFE
B59: Otras Notas de los Estados Financieros
C60: Activos gravados | D60: Nota 36
C61: Contingencias y compromisos | D61: Nota 37
C62: Impuesto diferido | D62: Nota 38
C63: Hechos posteriores | D63: Nota 39
C64: Saldos y transacciones con partes relacionadas | D64: Nota 40

Sheet BG
D1: ATLANTIC S.A.E. | E1: Indice
A7: BALANCE GENERAL
A8: =IFERROR(IF(Indice!B6="","Al dia... de mes… de año 2XX2…","Al "&DAY(Indice!B6)&" de "&VLOOKUP(MONTH(Indice!B6),Indice!S:T,2,0)&" de "&YEAR(Indice!B6)),"Al dia... de mes… de año 2XX2…") -> Al 30 de Septiembre de 2021
A9: Con cifras comparativas al 31 de diciembre de 2020
A10: (En miles de guaraníes)
E12: Nota | F12: =IFERROR(IF(Indice!B6="","2XX2",YEAR(Indice!B6)),"2XX2") -> 2021 | G12: =IFERROR(YEAR(Indice!B6-365),"2XX1") -> 2020
B13: ACTIVOS
B14: Activos Corrientes
C15: Efectivo y equivalente de efectivo | E15: 3 | F15: 1.764862421e+10 | G15: 15439836619
C16: Inversiones temporales | E16: 4 | F16: 0 | G16: 0
C17: Cuentas por cobrar comerciales | E17: 5 | F17: 6.231139255e+10 | G17: 3.969588491e+10
C18: Otros créditos | E18: 6 | F18: 3620282485 | G18: 4359906361
C19: Inventarios | E19: 7 | F19: 91867922815 | G19: 77293982983
C20: Total activos corrientes | F20: =SUM(F15:F19) -> 1.754482221e+11 | G20: =SUM(G15:G19) -> 1.367896109e+11
B21: Activos no Corrientes
C22: Otros créditos | E22: 6 | F22: 0 | G22: 380118966
C23: Cuentas por cobrar comerciales | E23: 5 | F23: 0 | G23: 0
C24: Inversión en asociadas | E24: 8 | F24: 0 | G24: 0
C25: Propiedades, planta y equipo/Bienes de uso, neto | E25: 9 | F25: 48554580123 | G25: 50569349859
C26: Activos disponibles para la venta | E26: 10 | F26: 0 | G26: 0
C27: Activos intangibles | E27: 11 | F27: 1202418790 | G27: 1181658488
C28: Goodwill | E28: 12 | F28: 0 | G28: 0
C29: Total activos no corrientes | F29: =SUM(F22:F28) -> 49756998913 | G29: =SUM(G22:G28) -> 52131127313
B30: Total Activos | F30: =+F20+F29 -> 2.25205221e+11 | G30: =+G20+G29 -> 1.889207382e+11
B31: PASIVOS Y PATRIMONIO NETO
B32: Pasivos corrientes | F32: -1
C33: Cuentas por pagar comerciales | E33: 13 | F33: 3.121503812e+10 | G33: 27231621593
C34: Préstamos a corto plazo | E34: 14 | F34: 2505167807 | G34: 2505753423
C35: Porción corriente de la deuda a largo plazo | E35: 15 | F35: 0 | G35: 0
C36: Remuneraciones y cargas sociales a pagar | E36: 16 | F36: 1497838573 | G36: 265312197
C37: Impuestos a pagar | E37: 17 | F37: 4930007014 | G37: 2460376636
C38: Provisiones | E38: 18 | F38: 0 | G38: 0
C39: Otros pasivos corrientes | E39: 19 | F39: 1744996917 | G39: 12825815815
C40: Total Pasivos Corrientes | F40: =SUM(F33:F39) -> 4.189304843e+10 | G40: =+SUM(G32:G39) -> 45288879664
B41: Pasivos no corrientes
C42: Préstamos a largo plazo | E42: 14 | F42: 12750000000 | G42: 15000000000
C43: Otros pasivos no corrientes | E43: 19 | F43: 0 | G43: 0
C44: Total pasivos no corrientes | F44: =SUM(F42:F43) -> 12750000000 | G44: =SUM(G42:G43) -> 15000000000
B46: Total Pasivos | F46: =+F40+F44 -> 5.464304843e+10 | G46: =+G40+G44 -> 60288879664
B47: Patrimonio Neto
C48: Capital integrado | E48: 20 | F48: 89040000000 | G48: 89040000000
C49: Reserva de revalúo | E49: 21 | F49: 19301479530 | G49: 19301479530
C50: Reserva legal | E50: 21 | F50: 9789783914 | G50: 9237272666
C51: Reservas estatutarias | E51: 21 | F51: 0 | G51: 0
C52: Reservas facultatitvas | E52: 21 | F52: 10500595077 | G52: 2881363
C53: Diferencia transitoria por conversión | E53: 22 | F53: 0 | G53: 0
C54: Resultados acumulados | E54: 23 | F54: 41930314018 | G54: 11050224962
C55: Subtotal | F55: =SUM(F48:F54) -> 170562172539 | G55: =SUM(G48:G54) -> 128631858521
C56: Interés minoritario | E56: 24 | F56: ='Nota 24'!B8 -> 0 | G56: ='Nota 24'!C8 -> 0
B57: Total Patrimonio Neto | F57: =F55 -> 170562172539 | G57: =G55 -> 128631858521
B58: Total Pasivos y Patrimonio Neto | F58: =+F46+F57 -> 2.25205221e+11 | G58: =+G46+G57 -> 188920738185
B60: Las notas que se acompañan forman parte integrante de estos estados.

Sheet ER
A1: ATLANTIC S.A.E. | B1: Indice | D1: =ER!A4 -> 
A7: ESTADO DE RESULTADOS
A8: =IFERROR(IF(Indice!B6="","Al dia... de mes… de año 2XX2…","Al "&DAY(Indice!B6)&" de "&VLOOKUP(MONTH(Indice!B6),Indice!S:T,2,0)&" de "&YEAR(Indice!B6)),"Al dia... de mes… de año 2XX2…") -> Al 30 de Septiembre de 2021
A9: Comparativo con igual período del año anterior
A10: (En miles de guaraníes)
B12: Nota | C12: =IFERROR(IF(Indice!B6="","2XX2",YEAR(Indice!B6)),"2XX2") -> 2021 | D12: =IFERROR(YEAR(Indice!B6-365),"2XX1") -> 2020
A13: Ventas | B13: 25 | C13: =219189315306-34465677194 -> 184723638112 | D13: 156194556543
A14: Costo de ventas | B14: 26 | C14: -144561759133 | D14: -123538262610
A15: Utilidad bruta | C15: =C13+C14 -> 40161878979 | D15: =D13+D14 -> 32656293933
A16: Gastos de ventas | B16: 27 | C16: =-'Nota 27'!B30 -> -10420643983 | D16: -10056036060
A17: Gastos administrativos | B17: 27 | C17: =-'Nota 27'!C30 -> -20968611843 | D17: -15649358481
A18: Otros ingresos y gastos operativos | B18: 28 | C18: 41207726553 | D18: 2148933329
A19: Resultado operativo | C19: =SUM(C15:C18) -> 49980349706 | D19: =SUM(D15:D18) -> 9099832721
A20: Ingresos financieros - neto | B20: 29 | C20: 322159475 | D20: 1557394
A21: Gastos financieros - neto | B21: 29 | C21: -3442188149 | D21: -287915803
A22: Subtotal | C22: =SUM(C19:C21) -> 46860321032 | D22: =SUM(D19:D21) -> 8813474312
A23: Resultado de inversiones en asociadas | B23: 30 | C23: 0 | D23: 0
A24: Resultados ordinarios antes de impuesto a la renta y participación minoritaria | C24: =C22+C23 -> 46860321032 | D24: =D22+D23 -> 8813474312
A25: Resultado participación minoritaria | B25: 31 | C25: ='Nota 31'!B16 -> 0 | D25: ='Nota 31'!C16 -> 0
A26: Resultado ordinario antes del impuesto a la renta | C26: =+C24+C25 -> 46860321032 | D26: =+D24+D25 -> 8813474312
A27: Impuesto a la renta | B27: 32 | C27: -4930007014 | D27: -883352598
A28: Resultado neto de actividades ordinarias | C28: =+C26+C27 -> 41930314018 | D28: =+D26+D27 -> 7930121714
A29: Resultado extraordinario neto de impuesto a la renta | B29: 33 | C29: 0 | D29: 0
A30: Resultado sobre actividades discontinuadas neto de impuesto a la renta | B30: 34 | C30: 0 | D30: 0
A31: Utilidad/(Pérdida) neta del año | C31: =C28+C29+C30 -> 41930314018 | D31: =D28+D29+D30 -> 7930121714
A32: Utilidad neta por acción ordinaria | B32: 35 | C32: 419303.1402 | D32: 79304.97942
A35: Las notas que se acompañan forman parte integrante de estos estados.

Sheet EVPN
A1: ATLANTIC S.A.E. | H1: Indice
A4: ESTADO DE EVOLUCIÓN DEL PATRIMONIO NETO
A5: =IFERROR(IF(Indice!B6="","Al dia... de mes… de año 2XX2…","Al "&DAY(Indice!B6)&" de "&VLOOKUP(MONTH(Indice!B6),Indice!S:T,2,0)&" de "&YEAR(Indice!B6)),"Al dia... de mes… de año 2XX2…") -> Al 30 de Septiembre de 2021
A6: Comparativo con igual periodo del año anterior
A7: (En miles de guaraníes)
C10: Aporte de los propietarios | L10: Ganancias reservadas
C11: Capital suscripto e integrado | D11: Aporte para | F11: Primas de emisión | H11: Reserva de revalúo | J11: Reserva de revalúo técnico | L11: Reserva legal | N11: Reserva facultativa | P11: Resultados acumulados | R11: Interes Minoritario | T11: Total
D12: aumento de capital | P12: Total
A14: Saldo al 31 de Diciembre de 2019 | C14: =75000000000-1720000000 -> 73280000000 | F14: 0 | H14: 19301479530 | J14: 0 | L14: 8848880557 | N14: 26804483923 | P14: 7767842181 | R14: 0 | T14: =+SUM(C14:R14) -> 136002686191
A15: Cambio en política contable | C15: 0 | F15: 0 | H15: 0 | J15: 0 | L15: 0 | N15: 0 | P15: 0 | R15: 0 | T15: =+SUM(C15:R15) -> 0
A16: Saldo reestructurado | C16: =+C14+C15 -> 73280000000 | F16: =+F14+F15 -> 0 | H16: =+H14+H15 -> 19301479530 | J16: =+J14+J15 -> 0 | L16: =+L14+L15 -> 8848880557 | N16: =+N14+N15 -> 26804483923 | P16: =+P14+P15 -> 7767842181 | R16: =+R14+R15 -> 0 | T16: =+T14+T15 -> 136002686191
A17: Distribución de dividendos | C17: 0 | F17: 0 | H17: 0 | J17: 0 | L17: 0 | N17: -18421052632 | R17: 0 | T17: =+SUM(C17:R17) -> -18421052632
A18: Integración del capital social | C18: =-[1]VPN!$F$16 -> 15760000000 | F18: 0 | H18: 0 | J18: 0 | L18: 0 | N18: =+[1]VPN!$F$16 -> -15760000000 | P18: 0 | R18: 0 | T18: 0
A19: Reducción del capital social | C19: 0 | F19: 0 | H19: 0 | J19: 0 | L19: 0 | N19: 0 | P19: 0 | R19: 0 | T19: 0
A20: Constitución de reservas | C20: 0 | F20: 0 | H20: 0 | J20: 0 | L20: 388392109 | N20: 7379450072 | P20: =-N20-L20 -> -7767842181 | R20: 0 | T20: 0
A21: Revalúo técnico | C21: 0 | F21: 0 | H21: 0 | J21: 0 | L21: 0 | N21: 0 | P21: 0 | R21: 0 | T21: 0
A22: Resultado del año | C22: 0 | F22: 0 | H22: 0 | J22: 0 | L22: 0 | N22: 0 | P22: =+[1]VPN!$G$19 -> 7930497942 | R22: 0 | T22: 7930497942
A24: =IFERROR(IF(Indice!B6="","Saldo al .. de de 20X1 ","Saldo al "&DAY(Indice!B6)&" de "&VLOOKUP(MONTH(Indice!B6),Indice!S:T,2,0)&" de "&YEAR(Indice!B6-365)),"Saldo al .. de de 20X1 ") -> Saldo al 30 de Septiembre de 2020 | C24: =C16+C17+C18+C19+C20+C21+C22 -> 89040000000 | D24: =SUM(D14:D22) -> 0 | F24: =F16+F17+F18+F19+F20+F21+F22 -> 0 | G24: =SUM(G14:G23) -> 0 | H24: =H16+H17+H18+H19+H20+H21+H22 -> 19301479530 | J24: =J16+J17+J18+J19+J20+J21+J22 -> 0 | L24: =L16+L17+L18+L19+L20+L21+L22 -> 9237272666 | N24: =N16+N17+N18+N19+N20+N21+N22 -> 2881363 | P24: =P16+P17+P18+P19+P20+P21+P22 -> 7930497942 | R24: =R16+R17+R18+R19+R20+R21+R22 -> 0 | T24: =+SUM(C24:R24) -> 125512131501
A26: Saldo al 31 de Diciembre de 2020 | C26: =+'Nota 20'!C8 -> 89040000000 | D26: =SUM(D16:D24) -> 0 | F26: =F18+F19+F20+F21+F22+F23+F24 -> 0 | G26: =SUM(G16:G25) -> 0 | H26: =H18+H19+H20+H21+H22+H23+H24 -> 19301479530 | J26: =J18+J19+J20+J21+J22+J23+J24 -> 0 | L26: 9237272666 | N26: 2881363 | P26: 11050224962 | R26: =R18+R19+R20+R21+R22+R23+R24 -> 0 | T26: =+SUM(C26:R26) -> 128631858521
A27: Cambio en política contable | C27: 0 | F27: 0 | H27: 0 | J27: 0 | L27: 0 | N27: 0 | P27: 0 | R27: 0 | T27: =+SUM(C27:R27) -> 0
A28: Saldo reestructurado | C28: =+C26+C27 -> 89040000000 | F28: =+F26+F27 -> 0 | H28: =+H26+H27 -> 19301479530 | J28: =+J26+J27 -> 0 | L28: =+L26 -> 9237272666 | N28: =+N26 -> 2881363 | P28: =+P26+P27 -> 11050224962 | R28: =+R26+R27 -> 0 | T28: =+SUM(C28:R28) -> 128631858521
A29: Distribución de dividendos | C29: 0 | F29: 0 | H29: 0 | J29: 0 | L29: 0 | N29: 0 | P29: 0 | R29: 0 | T29: 0
A30: Constitución de reservas | C30: 0 | F30: 0 | H30: 0 | J30: 0 | L30: 552511248 | N30: 10497713714 | P30: =-N30-L30 -> -11050224962 | R30: 0 | T30: =+SUM(C30:R30) -> 0
A31: Desafectación de la reserva de revalúo técnico | C31: 0 | F31: 0 | H31: 0 | J31: 0 | L31: 0 | N31: 0 | P31: 0 | R31: 0 | T31: 0
A32: Resultado del año | C32: 0 | F32: 0 | H32: 0 | J32: 0 | L32: 0 | N32: 0 | P32: =+'Nota 23'!B9 -> 41930314018 | R32: 0 | T32: =+SUM(C32:R32) -> 41930314018
A34: =IFERROR(IF(Indice!B6="","Saldo al .. de de 20X2 ","Saldo al "&DAY(Indice!B6)&" de "&VLOOKUP(MONTH(Indice!B6),Indice!S:T,2,0)&" de "&YEAR(Indice!B6)),"Saldo al .. de de 20X2 ") -> Saldo al 30 de Septiembre de 2021 | C34: =C28+C29+C30+C31+C32 -> 89040000000 | D34: =SUM(D24:D32) -> 0 | F34: =F28+F29+F30+F31+F32 -> 0 | H34: =H28+H29+H30+H31+H32 -> 19301479530 | J34: =J28+J29+J30+J31+J32 -> 0 | L34: =L28+L29+L30+L31+L32 -> 9789783914 | N34: =N28+N29+N30+N31+N32 -> 10500595077 | P34: =P28+P29+P30+P31+P32 -> 41930314018 | R34: =R28+R29+R30+R31+R32 -> 0 | T34: =+SUM(C34:R34) -> 170562172539
A36: Las notas que se acompañan forman parte integrante de estos estados.

Sheet EFE
A1: ATLANTIC S.A.E.
A5: ESTADO DE FLUJOS DE EFECTIVO (Método directo)
A6: =IFERROR(IF(Indice!B6="","Al dia... de mes… de año 2XX2…","Al "&DAY(Indice!B6)&" de "&VLOOKUP(MONTH(Indice!B6),Indice!S:T,2,0)&" de "&YEAR(Indice!B6)),"Al dia... de mes… de año 2XX2…") -> Al 30 de Septiembre de 2021
A7: Comparativo con igual periodo del año anterior
A8: (En miles de guaraníes)
B11: =IFERROR(IF(Indice!B6="","2XX2",YEAR(Indice!B6)),"2XX2") -> 2021 | C11: =IFERROR(YEAR(Indice!B6-365),"2XX1") -> 2020
A13: FLUJO DE EFECTIVO DE ACTIVIDADES OPERATIVAS
A14: Cobranzas efectuadas a clientes | B14: =184971061900.918-8899137736 -> 1.760719242e+11 | C14: 153949085408
A15: Pagos efectuados a proveedores y empleados | B15: -163639393582 | C15: -124752606998
A16: Efectivo generado por las operaciones | B16: =+B14+B15 -> 1.243253058e+10 | C16: =+C14+C15 -> 29196478410
A17: Intereses pagados | B17: 0 | C17: 0
A18: Otros ingresos y (egresos) - neto | B18: =-14502035767+8899137736 -> -5602898031 | C18: =-15447438437+2148933329 -> -13298505108
A19: Pagos de impuesto a la renta | B19: -1557107986 | C19: 0
A20: Flujo neto de efectivo de actividades operativas | B20: =+SUM(B16:B19) -> 5272524566 | C20: =+SUM(C16:C19) -> 15897973302
A22: FLUJO DE EFECTIVO DE ACTIVIDADES DE INVERSIÓN
A23: Adquisición de bienes de uso | B23: 0 | C23: -258930360
A24: Adquisición de intangibles | B24: -20760302 | C24: -172021831
A25: Ventas de bienes de uso | B25: 1042619809 | C25: 0
A26: Intereses cobrados sobre inversiones | B26: 0 | C26: 0
A27: Aquisición de inversiones | B27: 0 | C27: 0
A28: Flujo neto de efectivo de actividades de inversión | B28: =SUM(B23:B27) -> 1021859507 | C28: =SUM(C23:C27) -> -430952191
A30: FLUJO DE EFECTIVO DE ACTIVIDADES DE FINANCIACIÓN
A31: (Disminución) Incremento de préstamos | B31: -2250000000 | C31: -10000000000
A32: Intereses Pagados sobre préstamos | B32: -1498589041 | C32: -253410823
A33: Aportes de capital recibidos | B33: 0 | C33: 0
A34: Dividendos pagados | B34: 0 | C34: 0
A35: Flujo neto de efectivo de actividades de financiamiento | B35: =B31+B33+B34+B32 -> -3748589041 | C35: =C31+C33+C34+C32 -> -10253410823
A37: (Disminución) Incremento neto de efectivo | B37: =+B35+B28+B20 -> 2545795032 | C37: =+C35+C28+C20 -> 5213610288
A38: Efecto estimado de la diferencia de cambio sobre el saldo de efectivo | B38: -337007442 | C38: -287915803
A39: Efectivo al principio del año | B39: =+BG!G15 -> 15439836619 | C39: 2686643948
A41: Efectivo al final del periodo | B41: =+SUM(B37:B39) -> 1.764862421e+10 | C41: =+SUM(C37:C39) -> 7612338433
A43: Las notas que se acompañan forman parte integrante de estos estados.

Sheet Nota1
A1: ATLANTIC S.A.E. | I1: BG
A6: NOTAS A LOS ESTADOS FINANCIEROS CORRESPONDIENTES AL PERIODO TERMINADO | H6: =IFERROR(IF(Indice!B6="","Al dia... de mes… de año 2XX2…","Al "&DAY(Indice!B6)&" de "&VLOOKUP(MONTH(Indice!B6),Indice!S:T,2,0)&" de "&YEAR(Indice!B6)),"Al dia... de mes… de año 2XX2…") -> Al 30 de Septiembre de 2021
A7: Presentadas en forma comparativa con el periodo terminado | F7: =IFERROR("Al "&DAY(Indice!B6)&" de "&VLOOKUP(MONTH(Indice!B6),Indice!S:T,2,0)&" de "&YEAR(Indice!B6-365),"Al dia... de mes… de año 2XX1…") -> Al 30 de Septiembre de 2020
A11: NOTA 1 – DESCRIPCIÓN DE LA NATURALEZA Y DEL NEGOCIO DE LA COMPAÑÍA
A12: ATLANTIC SOCIEDAD ANONIMA EMISORA fue constituida originalmente bajo la denominación de ATLANTIC S.R.L. por Escritura Pública N°2, de fecha 15 de marzo de 1973 pasada ante el Escribano Público César Alberto Riart, inscripta en el Registro Público de Comercio bajo el N° 230, el folio 309, del Libro Sección al respectivo, el 26 de abril de 1973.
A13: Sus Estatutos Sociales fueron modificados por Escritura Pública N° 190, de fecha 2 de agosto de 1977, pasada ante el Escribano Público Lorenzo N. Livieres, habiéndose inscrito en el Registro Público de Comercio bajo el N° 699 al folio 123 y siguiente del Libro Seccional respectivo el 12 de agosto de 1977. Posteriormente fue modificado por Escritura Pública N° 256, de la fecha 23 de agosto de 1978, autorizado por el Escribano Público Lorenzo N. Livieres, siendo inscrito en el Registro Público de Comercio bajo el N° 993 al folio 55 y siguiente del Libro Seccional respectivo, el 27 de septiembre de 1978.
A14: Una nueva modificación fue realizada por Escritura Pública N° 420 de fecha 5 de diciembre de 1978, pasada también ante el Escribano Público Lorenzo N. Livieres inscripto en el Registro Público de Comercio bajo el N° 36, al folio 234 y siguientes del Libro Seccional respectivo el 14 de enero de 1979. Luego fueron modificados por Escritura Pública N° 52 de fecha 12 de diciembre de 1980, pasada ante el mismo Escribano inscripta en el Registro Público de Comercio bajo el N° 81, folio 154 y siguiente de fecha 23 de enero de 1981.
A15: Otra modificación se dio por Escritura Pública N° 94 de fecha 20 de marzo de 1984, pasada ante el Escribano Público Lorenzo N. Livieres, siendo inscripta en el Registro Público de comercio bajo el N° 647 de la fecha 9 de julio de 1984. Por Escritura Pública N° 6, de fecha 12 de noviembre de 1985, pasada ante el Escribano Público Federico José Franco, inscripto en el Registro Público de Comercio bajo el N° 1214 de fecha 12 de diciembre de 1985.
A16: Luego fue modificado por Escritura Pública N° 7 de fecha 12 de diciembre de 1985 e inscrita en el Registro Público de Comercio bajo el N° 1237 de fecha 31 de diciembre de 1985.
A17: También fue modificado por Escritura Pública N° 636 de fecha 30 de diciembre de 1989, pasada ante el Escribano Público Lorenzo N. Livieres, inscripta en el Registro Público de Comercio bajo N° 128, de fecha 20 de febrero de 1990. Igualmente, por Escritura Pública N° 129, de fecha 20 de agosto de 1991, inscripta en el Registro Público de Comercio bajo el N° 1155 de fecha 24 de octubre de 1991. Por Escritura Pública N° 251, de fecha 26 de octubre de 1991, inscrita en el Registro Público de Comercio bajo el N° 367 de fecha 3 de julio de 1992.También por Escritura Pública N° 108 de fecha 30 de junio de 1993 inscripta en el Registro Público de Comercio bajo el N° 650 de fecha 3 de agosto de 1993.
A18: Por Escritura Pública N° 126 de la fecha 5 de agosto de 1994 fue transformada “ATLANTIC S.A.”, inscripta en el Registro Público de Comercio bajo el N° 286 de la fecha 3 de marzo de 1995.
A19: A través de la Escritura Pública N° 441 de la fecha 7 de diciembre de 1995 pasó a denominarse “ATLANTIC SOCIEDAD ANONIMA EMISORA DE CAPITAL ABIERTO”, inscripta en el Registro de Comercio bajo el N° 842 de fecha 22 de diciembre de 1995.
A21: Por Escritura Pública N° 420 de fecha 15 de diciembre de 2000, inscripta en el Registro Público de Comercio bajo el N° 845 de fecha 9 de noviembre de 2001. Por Escritura Pública Complementaria N° 35 de la fecha 15 de diciembre de 2000 inscripta bajo el N° 846 de la fecha 9 de noviembre del 2001.
A23: También se modificó por Escritura Pública N° 63 de la fecha del 10 de abril del 2007, inscripta en el Registro Público de Comercio bajo el N° 431 de fecha 25 de julio de 2007, por Escritura Pública N° 221 de fecha 30 de diciembre de 2009, inscripta en el Registro Público de Comercio bajo el N° 77 de la fecha 3 de marzo de 2010. Modificado nuevamente por Escritura Pública N° 41 de fecha 1 de noviembre del 2011, inscripta en el Registro Público de Comercio bajo el N° 65 del 11 de enero del 2012.
A25: Por Escritura Pública N° 159 de fecha 11 de agosto de 2014, pasada ante la Escribana Pública Basilia Irene Ibarra, se modifica a la denominación de “ATLANTIC SOCIEDAD ANONIMA EMISORA”, fue inscripta en el Registro Público de Comercio bajo el N° 629, serie “A” 10.016 de fecha 24 de septiembre de 2014.
A27: Por último, según Escritura Pública N° 84 de fecha 7 de septiembre de 2017, pasada ante la Notaria y Escribana Pública Clara Susana Duarte de Piñeiro, se modificó el Estatuto Social a efectos de elevar el capital social de la Sociedad a la suma de 75.000.000.000 (guaraníes Setenta y cinco mil millones). Fue inscripta en el Registro Público de Comercio bajo N°1, folio 1 de fecha 29 de septiembre del 2007.
A28: Por Acta de Asamblea Extraodinaria N° 44 de fecha 23/09/2020 , la Sociedad ha autorizado el aumento del capital social de G. 75.000.000.000 (guaraníes setenta y cinco millones) a G. 100.000.000.000 (guaraníes cien mil millones), cuyo proceso de inscripción se encuentra en el Registro Público de Comercio.
A30: La Sociedad tiene su domicilio legal y asiento del Directorio en la ciudad de Asunción, Capital de la República del Paraguay.
A32: El plazo de duración de la Sociedad será por noventa y nueve (99) años contados a partir de la inscripción en el Registro de Personería Jurídica y Asociaciones, dicho plazo podrá ser prorrogado o suspendido por la Asamblea General Extraordinaria de Accionistas.
A34: La sociedad tiene por OBJETO PRINCIPAL realizar por cuenta propia o de terceros, en su nombre o tercero asociado a tercero, actividades de: REPRESENTACION, IMPORTACION, EXPORTACIÓN, PRESTACION DE SERVICIO, TRANSFORMACIÓN E INDUSTRIALIZACION, DISTRIBUCION, al por mayor y detalle, de productos, artículos y géneros de: ferretería, herramientas y maquinarias, herramientas manuales y electromecánica y eléctricas, de carpintería, para autos mecánica y mecánica en general; caza, pesca y deportes en general; de electricidad; de limpieza y terminación, cepillería y abrasivos; tubos y conexiones; bazar y juguetería en las diferentes clases y modalidades de realización y contratación; y todas de las demás actividades relacionadas, directa o indirectamente con su objetivo principal.

Sheet Nota 2
A1: ATLANTIC S.A.E. | I1: BG
A6: NOTA 2 - RESUMEN DE LAS PRINCIPALES POLÍTICAS CONTABLES
A7: Resumen de las principales políticas contables: a modo referencial, se incluyen las siguientes revelaciones de políticas contables en estados financieros de uso general que podrá ser tenida en consideración por las sociedades emisoras para la preparación de este capítulo de los estados financieros:
A10: a. Bases de contabilización
A11: Los estados financieros se han preparado siguiendo los criterios de las Normas de Información Financiera (NIF) emitidas por el Consejo de Contadores Públicos del Paraguay sobre la base de costos históricos, excepto para el caso de activos y pasivos en moneda extranjera y las propiedades, planta y equipo según se explica en los puntos c ) y k), y no reconocen en forma integral los efectos de la inflación sobre la situación patrimonial y financiera de la sociedad, sobre los resultados de sus operaciones y los flujos de efectivo, en atención a que la corrección monetaria no constituye una práctica contable obligatoria en el Paraguay.
A12: De haberse aplicado una corrección monetaria integral de los estados financieros, podrían haber surgido diferencias en la presentación de la situación patrimonial y financiera de la sociedad, en los resultados de sus operaciones y en los flujos de efectivo al ….., y por los ejercicios cerrados el, 31 de ………. de 20X2 y 20X1. Según el índice general de precios del consumo (IPC) publicado por el Banco Central del Paraguay, la inflación fue de 00,0% en el año 20X2 y 00,0% en el año 20X1. Obs: Datos a incorporar para cierre del ejercicio
A13: Algunas cifras correspondientes al periodo del 2021 fueron reclasificadas en los presentes estados financieros con el fin de hacerlas comparables con las del periodo actual y adecuarse al nuevo formato de presentación exigido por la Comisión Nacional de Valores.
A15: b. Uso de estimaciones contables
A16: La preparación de los presentes estados financieros requiere que la Gerencia de la sociedad realice estimaciones y evaluaciones que afectan el monto de los activos y pasivos registrados y contingentes, como así también los ingresos y egresos registrados en el ejercicio. Los resultados reales futuros pueden diferir de las estimaciones y evaluaciones realizadas a la fecha de preparación de los presentes estados financieros.
A18: c. Moneda extranjera
A19: Los activos y pasivos en moneda extranjera se valúan a los tipos de cambio vigentes a la fecha de cierre del ejercicio.
A20: Las diferencias de cambio originadas por fluctuaciones en los tipos de cambio producidos entre las fechas de concertación de las operaciones y su liquidación o valuación al cierre del ejercicio, son reconocidas en resultados.
C23: =IFERROR(IF(Indice!B6="","2XX2",YEAR(Indice!B6)),"2XX2") -> 2021 | G23: =IFERROR(YEAR(Indice!B6-365),"2XX1") -> 2020
B24: Indicar moneda | C24: Simbología según ISO 4217 | D24: Guaraníes | F24: Indicar moneda | G24: Simbología según ISO 4217 | H24: Guaraníes
A25: Activos | B25: USD | D25: 5.14857398e+10 | F25: USD | G25: =IFERROR(VLOOKUP(F25,'Base de Monedas'!E:F,2,0),"") ->  | H25: 2.458731176e+10
A27: Pasivos | B27: USD | D27: -2.887577e+10 | F27: USD | H27: -23877939605
B28: BRL | D28: -4585318.555 | F28: BRL | H28: -5509806
A29: Posición neta | D29: =+SUM(D25:D28) -> 2.260538448e+10 | H29: =+SUM(H25:H28) -> 703862346.4
A31: El detalle de las cotizaciones de la moneda extranjera operada por la sociedad es el siguiente:
C32: Simbología | D32: 2021-09-30 | F32: 2020-12-31
D33: ACTIVOS | E33: PASIVOS | F33: ACTIVOS | G33: PASIVOS
A34: Dólar Americano | C34: $ | D34: 6895.8 | E34: 6918.66 | F34: 6891.96 | G34: 6941.65
A35: Real | C35: R$ | D35: 1264.24 | E35: 1268.59 | F35: 1328.08 | G35: 1337.84
A37: A la fecha de emisión de estos estados financieros, el tipo de cambio de la moneda extranjera………………………..(mencionar la moneda) no/si varió sustancialmente (varió en un 0,00%) con respecto al vigente al …..de…………….20X1
A39: d. Efectivo y equivalentes de efectivo
A40: Se considerarán dentro del concepto los fondos de libre disponibilidad en poder de la Sociedad y en Bancos de plaza, en las modalidades de cuentas corrientes y cajas de ahorros en guaraníes y en moneda extranjera
A42: e. Previsión para cuentas de dudoso cobro/incobrables
A43: Las previsiones para cuentas de dudoso cobro se determinan al cierre de cada ejercicio y/o mensualmente sobre la base del estudio de la cartera de créditos realizado con el objeto de determinar la porción no recuperable de las cuentas a cobrar. La Sociedad constituye previsiones sobre las cuentas de dudoso cobro o de difícil recuperabilidad, teniendo en cuenta el análisis de la Gerencia sobre la antigüedad y cobrabilidad de cada uno de los créditos.
A45: Criterio para Previsiones
A46: 1. Clientes que registran atrasos y estan por ser demandados.
A47: 2. Clientes que tienen cuentas con otros proveedores y no estan pudiendo pagar.
A48: 3. Clientes con cheque devueltos.
A49: 4. Clientes que presentan atrasos normales.
A50: 6. Clientes que refinancian sus cuentas.
A52: f. Inventarios
A53: Las existencias se valúan al menor entre su costo de adquisición o de producción y su valor neto de realización (NIF 12, párrafo 5). Para determinar el consumo (baja de inventarios) se aplica la fórmula de costeo PPP (Precio Promedio Ponderado).
A55: g. Previsiones para desvalorización y deterioro de inventarios
A56: Las previsiones para desvalorización y deterioro de inventarios han sido estimadas tomando como base la valorización del stock deteriorado existente al cierre del ejercicio.
A58: h. Propiedades, planta y equipo
A59: Las propiedades, planta y equipo se exponen a su costo histórico ajustado por el coeficiente de revalúo emitido por la Autoridad Tributaria, menos la correspondiente depreciación acumulada. El incremento neto por la re-expresión se acredita a la respectiva reserva patrimonial, cuyo saldo puede ser utilizado únicamente para aumentar el capital.
A60: El costo de las mejoras que extienden la vida útil de los bienes o aumentan su capacidad productiva es imputado a las cuentas respectivas del activo. Los gastos de mantenimiento son cargados a resultados.
A63: i. Intangibles
A64: Los intangibles se exponen a su costo incurrido menos las correspondientes amortizaciones acumuladas al cierre del año.
A66: j. Reconocimiento de ingresos y egresos
A67: Los ingresos y egresos son reconocidos en función de su devengamiento.
A69: n. Impuesto a la renta
A70: El impuesto a la renta que se carga a los resultados del año se basa en la utilidad contable antes de este concepto, ajustada por las partidas que la ley incluye o excluye para la determinación de la utilidad gravable a la que se aplica la tasa legal vigente del impuesto (10%, Ley 6.380/19) y por el reconocimiento del cargo.
A72: o. Restricciones a la distribución de utilidades
A73: A continuación se mencionan las restricciones vigentes a distribución de utilidades:
A74: • La legislación paraguaya establece una transferencia del 5% de las utilidades del ejercicio para la constitución de una reserva legal hasta completar el 20% del capital integrado.
A75: • Ley Nº 6380/19 dispone aplicar dentro del primer año de vigencia una tasa única y extraordinaria de retención equivalente al 5% de Impuesto a los dividendos (IDU) sobre los importes netos de las utilidades a ser distribuidas. Además, de una retención sujeta a una tasa equivalente al 10% para las utilidades que sean remesadas o acreditadas a beneficiarios radicados en el exterior.

Sheet Nota 3 (hidden)
A1: ATLANTIC S.A.E. | E1: BG
A7: NOTA 3 - EFECTIVO Y EQUIVALENTE DE EFECTIVO
A8: En miles de guaranies
A10: La composición de la cuenta es la siguiente:
A12: Concepto | C12: =IFERROR(IF(Indice!B6="","2XX2",YEAR(Indice!B6)),"2XX2") -> 2021 | D12: =IFERROR(YEAR(Indice!B6-365),"2XX1") -> 2020
A14: Caja -Dólares | C14: 231126529 | D14: 356738520
A15: Valores a Rendir | C15: -15500000 | D15: 0
A16: Bancos Locales - Moneda local Guaraníes | C16: 2363356532 | D16: 3023432640
A17: Bancos Locales - Moneda extranjera Dólares | C17: 495000729 | D17: 870383148
A18: Bancos Locales - Moneda extranjera otros | C18: 0 | D18: 0
A19: Bancos en el Extranjero - Moneda extranjera Dólares | C19: 0 | D19: 0
A20: Fondo Fijo | C20: 56894336 | D20: 65000000
A21: Investor Casa de Bolsa M/E Fondo Mutuo | C21: 1.451774608e+10 | D21: 11124282311
A22: Total | C22: =SUM(C14:C21) -> 1.764862421e+10 | D22: =SUM(D14:D21) -> 15439836619

Sheet Nota 4 (hidden)
A1: ATLANTIC S.A.E. | D1: BG
A4: NOTA 4 - INVERSIONES TEMPORALES
A6: Al 30 de setiembre de 2021 y 31 de diciembre de 2020 la Sociedad no cuenta con Inversiones Temporales.
B7: En miles de guaranies
A8: Concepto | B8: =IFERROR(IF(Indice!B6="","2XX2",YEAR(Indice!B6)),"2XX2") -> 2021 | C8: =IFERROR(YEAR(Indice!B6-365),"2XX1") -> 2020
A9: Inversiones en Titulos del Sistema Financiero Local - Moneda Local Guaraníes | B9: 0 | C9: 0
A10: Inversiones en Titulos del Sistema Financiero Local - Moneda Extranjera Dólares | B10: 0 | C10: 0
A11: Inversiones en Titulos del Sistema Financiero Local - Moneda Extranjera otros | B11: 0 | C11: 0
A12: Inversiones en Mercado Bursatil Local - Moneda Local Guaraníes | B12: 0 | C12: 0
A13: Inversiones en Mercado Bursatil Local - Moneda Extranjera Dólares | B13: 0 | C13: 0
A14: Inversiones en Mercado Bursatil Extranjera - Moneda Extranjera Dólares | B14: 0 | C14: 0
A15: Inversiones en Mercado Bursatil Extranjera - Moneda Extranjera otros | B15: 0 | C15: 0
A16: Otras inversiones - Moneda Local Guaraníes | B16: 0 | C16: 0
A17: Otras inversiones - Moneda Extranjera Dólares | B17: 0 | C17: 0
A18: Total | B18: =SUM($B$9:B17) -> 0 | C18: =SUM($C$9:C17) -> 0

Sheet Nota 5 (hidden)
A1: ATLANTIC S.A.E. | F1: BG
A3: En este rubro se registran los derechos de la Sociedad con los clientes locales, deudores varios y otros. La cuenta "Valores a vencer" representa cheques adelantados de los clientes.
A5: NOTA 5 – CUENTAS POR COBRAR COMERCIALES
A6: Las cuentas a cobrar comerciales a corto plazo se integran como sigue:
C7: En miles de guaraníes
C8: =IFERROR(IF(Indice!B6="","2XX2",YEAR(Indice!B6)),"2XX2") -> 2021 | D8: =IFERROR(YEAR(Indice!B6-365),"2XX1") -> 2020 | F8: Composición de la cartera de créditos por ventas | G8: 2021-09-30
A9: Deudores por ventas locales | B9: Moneda Local Guaraníes | C9: 25431734286 | D9: 22600151790 | F9: Situación | G9: Monto | H9: % Previsiones sobre Cartera
A10: Deudores por ventas locales | B10: Moneda Extranjera Dólares | C10: 2.568172336e+10 | D10: 4227647065 | F10: A Total Cartera no Vencida | G10: 6.292146204e+10
A11: Deudores por ventas locales | B11: Moneda Extranjera otros | C11: 0 | D11: 0 | F11: B. Total Cartera Vencida | G11: =+G14+G15 -> 1295578966 | H11: 0.03
A12: Deudores por ventas en el exterior | B12: Moneda Local Guaraníes | C12: 0 | D12: 0 | F12: Composición Cartera Vencida
A13: Deudores por ventas en el exterior | B13: Moneda Extranjera Dólares | C13: 0 | D13: 0 | F13: Normal | G13: 0
A14: Deudores por ventas en el exterior | B14: Moneda Extranjera otros | C14: 0 | D14: 0 | F14: En Gestión de Cobro | G14: 506145039 | H14: 0.03
A15: Deudores - Entidad relacionada | B15: Moneda Local Guaraníes | C15: 0 | D15: 15770000 | F15: En Gestión de Cobro Judicial | G15: 789433927 | H15: 0.03
A16: Deudores - Entidad relacionada | B16: Moneda Extranjera Dólares | C16: 1514448562 | D16: 2110546483
A17: Deudores - Entidad relacionada | B17: Moneda Extranjera otros | C17: 0 | D17: 0 | F17: Total de la cartera de créditos (A+B) | G17: =+G11+G10 -> 6.421704101e+10
A18: Cheques adelantados recibidos de clientes | B18: Moneda Local Guaraníes | C18: 1.00019249e+10 | D18: 9137468541
A19: Cheques adelantados recibidos de clientes | B19: Moneda Extranjera Dólares | C19: 29207160.9 | D19: 0 | F19: (-) Total Previsiones | G19: -1905648459
A20: Cheques adelantados recibidos de clientes | B20: Moneda Extranjera otros | C20: 0 | D20: 0
A21: Cheques rechazados | B21: Moneda Local Guaraníes | C21: 439464446 | D21: 917167728 | F21: TOTAL NETO DE LA CARTERA DE CRÉDITOS | G21: =+G19+G17 -> 6.231139255e+10
A22: Cheques rechazados | B22: Moneda Extranjera Dólares | C22: 66680593 | D22: 0
A23: Valores en Gestión Judicial | B23: Moneda Local Guaraníes | C23: 789433927 | D23: 826244367 | F23: Observaciones
A24: Otros | B24: Moneda Extranjera Dólares | C24: 0 | D24: 0 | F24: Criterios de Clasificación utilizados | G24: De | H24: A
A25: Valores retenidos | B25: Moneda Local Guaraníes | C25: 262423770 | D25: 219587277 | F25: Normal
A26: Menos Previsiones | C26: -1905648459 | D26: -358698342 | F26: En Gestión de Cobro | G26: 1 | H26: -
A27: Total | C27: =SUM(C9:C26) -> 6.231139255e+10 | D27: =SUM(D9:D26) -> 3.969588491e+10 | F27: En Gestión de Cobro Judicial | G27: 1 | H27: -
A30: Las cuentas a cobrar comerciales a largo plazo se integran como sigue:
C31: En miles de guaraníes
C32: =IFERROR(IF(Indice!B6="","2XX2",YEAR(Indice!B6)),"2XX2") -> 2021 | D32: =IFERROR(YEAR(Indice!B6-365),"2XX1") -> 2020
A33: Deudores por ventas locales | B33: Moneda Local Guaraníes | C33: 0 | D33: 0
A34: Deudores por ventas locales | B34: Moneda Extranjera Dólares | C34: 0 | D34: 0
A35: Deudores por ventas locales | B35: Moneda Extranjera otros | C35: 0 | D35: 0
A36: Deudores por ventas en el exterior | B36: Moneda Local Guaraníes | C36: 0 | D36: 0
A37: Deudores por ventas en el exterior | B37: Moneda Extranjera Dólares | C37: 0 | D37: 0
A38: Deudores por ventas en el exterior | B38: Moneda Extranjera otros | C38: 0 | D38: 0
A39: Deudores - Entidad relacionada | B39: Moneda Local Guaraníes | C39: 0 | D39: 0
A40: Deudores - Entidad relacionada | B40: Moneda Extranjera Dólares | C40: 0 | D40: 0
A41: Deudores - Entidad relacionada | B41: Moneda Extranjera otros | C41: 0 | D41: 0
A42: Cheques adelantados recibidos de clientes | B42: Moneda Local Guaraníes | C42: 0 | D42: 0
A43: Cheques adelantados recibidos de clientes | B43: Moneda Extranjera Dólares | C43: 0 | D43: 0
A44: Cheques adelantados recibidos de clientes | B44: Moneda Extranjera otros | C44: 0 | D44: 0
A45: Deudores en gestión judicial | B45: Moneda Local Guaraníes | C45: 0 | D45: 0
A46: Deudores en gestión judicial | B46: Moneda Extranjera Dólares | C46: 0 | D46: 0
A47: Deudores en gestión judicial | B47: Moneda Extranjera otros | C47: 0 | D47: 0
A48: Cheques rechazados | B48: Moneda Local Guaraníes | C48: 0 | D48: 0
A49: Cheques rechazados | B49: Moneda Extranjera Dólares | C49: 0 | D49: 0
A50: Otros | B50: Moneda Local Guaraníes | C50: 0 | D50: 0
A51: Otros | B51: Moneda Extranjera Dólares | C51: 0 | D51: 0
A52: Otros | B52: Moneda Extranjera otros | C52: 0 | D52: 0
A53: Menos Previsiones | C53: 0 | D53: 0
A54: Total | C54: =+SUM($C$33:C53) -> 0 | D54: =+SUM($D$33:D53) -> 0

Sheet Nota 6 (hidden)
A1: ATLANTIC S.A.E. | D1: BG
A4: NOTA 6 - OTROS CRÉDITOS
A5: En miles de guaranies
A6: El rubro de otros créditos se compone como sigue:
A8: Corrientes | E8: No corrientes
A10: Concepto | B10: =IFERROR(IF(Indice!B6="","2XX2",YEAR(Indice!B6)),"2XX2") -> 2021 | C10: =IFERROR(YEAR(Indice!B6-365),"2XX1") -> 2020 | E10: Concepto | F10: =IFERROR(IF(Indice!B6="","2XX2",YEAR(Indice!B6)),"2XX2") -> 2021 | G10: =IFERROR(YEAR(Indice!B6-365),"2XX1") -> 2020
A11: Anticipos a proveedores | B11: 0 | C11: 0 | E11: Garantía de Alquiler | F11: 0 | G11: 0
A12: Gastos pagados por adelantado | B12: 661712387 | C12: 207581624 | E12: Anticipos a proveedores | F12: 0 | G12: 0
A13: Anticipo Impuesto a la Renta | B13: 515005269 | C13: 1418273919 | E13: Activos restringidos por Embargo Judicial | F13: 0 | G13: 380118966
A14: Retención Impuesto a la Renta | B14: 562876195 | C14: 1280673215 | E14: Total | F14: =+F13 -> 0 | G14: =+G13 -> 380118966
A15: Impuesto a la Renta saldo a favor | B15: 238570498 | C15: 0
A16: I.V.A. Crédito fiscal | B16: 900854413 | C16: 741472525
A17: Anticipo a Empleados | B17: 100000 | C17: 2200000
A18: Créditos Varios - IPS Reposo | B18: 0 | C18: 458794
A19: Débitos a Regularizar | B19: 2165087 | C19: 3003550
A20: Deudores Varios | B20: 555081577 | C20: 547325675
A21: Impuesto a Recuperar | B21: 42160182 | C21: 42160182
A22: Garantía de alquiler | B22: 141756877 | C22: 116756877
A23: Total | B23: =SUM(B11:B22) -> 3620282485 | C23: =SUM(C11:C22) -> 4359906361

Sheet Nota 7 (hidden)
A1: ATLANTIC S.A.E. | D1: BG
A4: NOTA 7 – INVENTARIOS
A6: Los bienes de cambio están compuestos de la siguiente manera:
B7: En miles de guaranies
A8: Concepto | B8: =IFERROR(IF(Indice!B6="","2XX2",YEAR(Indice!B6)),"2XX2") -> 2021 | C8: =IFERROR(YEAR(Indice!B6-365),"2XX1") -> 2020
A9: Mercaderías | B9: 83733184397 | C9: 71675838697
A10: Productos terminados | B10: 0 | C10: 0
A11: Productos en proceso | B11: 0 | C11: 0
A12: Materia prima | B12: 0 | C12: 0
A13: Importaciones en Curso | B13: 8949806780 | C13: 6433212648
A14: (-) Previsión para desvalorización y deterioro de inventario | B14: -815068362 | C14: -815068362
A15: Total | B15: =+SUM(B9:B14) -> 91867922815 | C15: =+SUM(C9:C14) -> 77293982983

Sheet Nota 8 (hidden)
A1: ATLANTIC S.A.E. | D1: BG
A4: Nota 8 - INVERSIONES EN ASOCIADAS
A5: En miles de guaraníes
A7: La Sociedad no cuenta con inversiones en otras entidades al 30 de setiembre de 2021 y 31 de diciembre de 2020.
A9: Periodo | B9: =IFERROR(IF(Indice!B6="","2XX2",YEAR(Indice!B6)),"2XX2") -> 2021 | C9: =IFERROR(YEAR(Indice!B6-365),"2XX1") -> 2020
A10: Total Inversión | B10: =SUM($I$15:I20) -> 0 | C10: 0
A12: a) Datos sobre la sociedad: | G12: a) Datos sobre la inversión:
D13: =IFERROR(IF(Indice!B6="","2XX2",YEAR(Indice!B6)),"2XX2") -> 2021
A14: Nombre de Sociedad | B14: RUC | C14: Cantidad de acciones | D14: Total Patrimonio neto | E14: Total del resultado | G14: Cantidad de acciones | H14: Participación sobre los votos (%) | I14: Total Inversión (miles de Gs) | J14: Participación sobre el Patrimonio Neto (%) | K14: Total valuación patrimonial proporcional | L14: Resultado sobre inversiones
A15: 0 | B15: 0 | C15: 0 | D15: 0 | E15: 0 | G15: 0 | H15: 0 | I15: 0 | J15: 0 | K15: =J15*D15 -> 0 | L15: =J15*E15 -> 0
A16: 0 | B16: 0 | C16: 0 | D16: 0 | E16: 0 | G16: 0 | H16: 0 | I16: 0 | J16: 0 | K16: =J16*D16 -> 0 | L16: =J16*E16 -> 0
A17: 0 | B17: 0 | C17: 0 | D17: 0 | E17: 0 | G17: 0 | H17: 0 | I17: 0 | J17: 0 | K17: 0 | L17: 0
A18: 0 | B18: 0 | C18: 0 | D18: 0 | E18: 0 | G18: 0 | H18: 0 | I18: 0 | J18: 0 | K18: 0 | L18: 0
A19: 0 | B19: 0 | C19: 0 | D19: 0 | E19: 0 | G19: 0 | H19: 0 | I19: 0 | J19: 0 | K19: 0 | L19: 0
A20: 0 | B20: 0 | C20: 0 | D20: 0 | E20: 0 | G20: 0 | H20: 0 | I20: 0 | J20: 0 | K20: 0 | L20: 0

Sheet Nota 9 (hidden)
A1: ATLANTIC S.A.E. | L1: BG
A5: Obs.:
A6: Incluir aclaraciones en los siguientes casos:
A7: 1. Cuando los bienes de uso tienen alguna restricción sobre su utilización, como por ejemplo cuando están garantizando obligaciones. En su caso también hacer referencia a la nota correspondiente.
A8: 2. Cuando exista alguna previsión por desvalorización (“deterioro”), detallando la evolución de la misma en el transcurso del año.
A9: 3. Si se están capitalizando intereses al costo de bienes de uso. En su caso deberá aclararse la tasa utilizada para la capitalización.
A10: Ver adicionalmente Norma de Información Financiera N° 11 Propiedades, planta y equipo
A12: NOTA 9 - PROPIEDADES, PLANTA Y EQUIPO - NETO
A13: En miles de guaraníes | J13: -1
B15: Costo histórico revaluado al inicio del año | C15: Adquisiciones | D15: Bajas | E15: Revalúo del año | F15: Valor de origen revaluado al final del año | G15: Depreciación acumulada revaluada al inicio del año | H15: Depreciación del año | I15: Bajas de depreciaciones acumuladas | J15: Revalúo depreciación acumulada del año | K15: Depreciación acumulada revaluada al final del año | L15: Valor neto contable
L16: =IFERROR(IF(Indice!B6="","2XX2",YEAR(Indice!B6)),"2XX2") -> 2021 | M16: =IFERROR(YEAR(Indice!B6-365),"2XX1") -> 2020
A17: Instalaciones | B17: 57963300 | C17: 0 | D17: 0 | E17: 0 | F17: =+B17+C17-D17+E17 -> 57963300 | G17: -44545 | H17: -3477798 | I17: 0 | J17: 0 | K17: =+H17+G17 -> -3522343 | L17: =+SUM(K17+F17) -> 54440957 | M17: 57918755
A18: Rodados | B18: 441293864 | C18: 0 | D18: 0 | E18: 0 | F18: 441293864 | G18: -432232463 | H18: 0 | I18: 0 | J18: 0 | K18: =+H18+G18 -> -432232463 | L18: =+SUM(K18+F18) -> 9061401 | M18: 9061401
A19: Equipos de computación | B19: 706003595 | C19: 129189285 | D19: 0 | E19: 0 | F19: 835192880 | G19: -360176655 | H19: -134090529 | I19: 0 | J19: 0 | K19: -494267184 | L19: 340925696 | M19: 345826940
A20: Muebles y útiles | B20: 3329937189 | C20: 12822316 | D20: 0 | E20: 0 | F20: 3342759505 | G20: -1042350246 | H20: -299341458 | I20: 0 | J20: 0 | K20: -1341691704 | L20: 2001067801 | M20: 2287586943
A21: Equipos de comunicación | B21: 0 | C21: 0 | D21: 0 | E21: 0 | F21: 0 | G21: 0 | H21: 0 | I21: 0 | J21: 0 | K21: 0 | L21: 0 | M21: 0
A22: Maquinarias y herramientas | B22: 213183550 | C22: 296031007 | D22: 0 | E22: 0 | F22: 509214557 | G22: -100003902 | H22: -21948617 | I22: 0 | J22: 0 | K22: -121952519 | L22: 387262038 | M22: 113179648
A23: Obras en curso | B23: 0 | C23: 7286188054 | D23: 0 | E23: 0 | F23: 7286188054 | G23: 0 | H23: 0 | I23: 0 | J23: 0 | K23: 0 | L23: 7286188054 | M23: 0
A24: Edificios | B24: 16409098437 | C24: 146898150 | D24: 0 | E24: 0 | F24: 16555996587 | G24: -1791646084 | H24: -422386649 | I24: 0 | J24: 0 | K24: -2214032733 | L24: 14341963854 | M24: 14617452353
A25: Inmuebles | B25: 32670295678 | C25: 4418894684 | D25: 13334761487 | E25: 0 | F25: 23754428875 | G25: 0 | H25: 0 | I25: 0 | J25: 0 | K25: 0 | L25: 23754428875 | M25: 32670295678
A26: Mejoras en Propiedad de Terceros | B26: 726653634 | C26: 2118182 | D26: 0 | E26: 0 | F26: =+B26+C26-D26+E26 -> 728771816 | G26: -258625493 | H26: -90904876 | I26: 0 | J26: 0 | K26: -349530369 | L26: 379241447 | M26: 468028141
A27: Totales | B27: =+SUM(B17:B26) -> 54554429247 | C27: 12292141678 | D27: 13334761487 | E27: 0 | F27: 53511809438 | G27: -3985079388 | H27: -972149927 | I27: 0 | J27: 0 | K27: -4957229315 | L27: =+SUM(L17:L26) -> 48554580123 | M27: =+SUM(M17:M26) -> 50569349859

Sheet Nota 10 (hidden)
A1: ATLANTIC S.A.E. | C1: BG
A4: NOTA 10 – ACTIVOS DISPONIBLES PARA LA VENTA
B5: En miles de guaranies
B6: =IFERROR(IF(Indice!B6="","2XX2",YEAR(Indice!B6)),"2XX2") -> 2021 | C6: =IFERROR(YEAR(Indice!B6-365),"2XX1") -> 2020
A7: Propiedad, planta y equipo
A8: (Detallar bienes de uso) | B8: 0 | C8: 0
A9: Total | B9: =B8 -> 0 | C9: =C8 -> 0
A11: Activos intangibles
A12: (Detallar activos intangibles) | B12: 0 | C12: 0
A13: Total | B13: =B12 -> 0 | C13: =C12 -> 0
A15: Inversiones
A16: (Detallar Inversiones | B16: 0 | C16: 0
A17: Total | B17: =B16 -> 0 | C17: =C16 -> 0
A19: Total general | B19: =B9+B13+B17 -> 0 | C19: =C9+C13+C17 -> 0
A21: La Sociedad no cuenta con Activos Disponibles para la Venta a la fecha de los presentes estados financieros.

Sheet Nota 11 (hidden)
A1: ATLANTIC S.A.E. | F1: BG
A4: NOTA 11 – ACTIVOS INTANGIBLES
B5: En miles de guaranies
A6: Activos intangibles | B6: 2021 | C6: 2020
A7: Licencia Software | B7: 1097793941 | C7: 1074915291
A8: Llave de Negocio | B8: 107603046 | C8: 107603046
A9: Menos amortización acumulada | B9: -2978197 | C9: -859849
A10: Total general | B10: =+SUM(B7:B9) -> 1202418790 | C10: =+SUM(C7:C9) -> 1181658488

Sheet Nota 12 (hidden)
A1: ATLANTIC S.A.E. | E1: BG
A5: NOTA 12 – GOODWILL
B6: En miles de guaranies
A7: Goodwill | B7: =IFERROR(IF(Indice!B6="","2XX2",YEAR(Indice!B6)),"2XX2") -> 2021 | C7: =IFERROR(YEAR(Indice!B6-365),"2XX1") -> 2020
A9: La Sociedad no cuenta con Goodwill registrado a la fecha de los estados financieros.
A11: Total general | B11: 0 | C11: 0

Sheet Nota 13 (hidden)
A1: ATLANTIC S.A.E. | C1: BG
A4: NOTA 13 – CUENTAS POR PAGAR COMERCIALES
A5: En miles de guaranies
A6: Las cuentas por pagar comerciales se componen como sigue:
A8: Corrientes | B8: Simbología según ISO 4217 | C8: Indicación de Moneda | D8: =IFERROR(IF(Indice!B6="","2XX2",YEAR(Indice!B6)),"2XX2") -> 2021 | E8: =IFERROR(YEAR(Indice!B6-365),"2XX1") -> 2020
A9: Proveedores - Entidades Relacionadas | B9: PYG | C9: =IFERROR(VLOOKUP(B9,'Base de Monedas'!A:B,2,0),"") -> Guaraní | D9: 12192792 | E9: 686400
A10: Proveedores - Entidades Relacionadas | B10: USD | C10: =IFERROR(VLOOKUP(B10,'Base de Monedas'!A:B,2,0),"") -> Dólar estadounidense | D10: 148116541.3 | E10: 17290887
A11: Otros proveedores del exterior | B11: PYG | C11: =IFERROR(VLOOKUP(B11,'Base de Monedas'!A:B,2,0),"") -> Guaraní | D11: 2312152 | E11: 0
A12: Otros proveedores del exterior | B12: USD | C12: =IFERROR(VLOOKUP(B12,'Base de Monedas'!A:B,2,0),"") -> Dólar estadounidense | D12: 2.777492618e+10 | E12: 23860648718
A13: Proveedores locales | B13: PYG | C13: =IFERROR(VLOOKUP(B13,'Base de Monedas'!A:B,2,0),"") -> Guaraní | D13: 2320177858 | E13: 2210831070
A14: Proveedores locales | B14: BRL | C14: =IFERROR(VLOOKUP(B14,'Base de Monedas'!A:B,2,0),"") -> Real brasileño | D14: 4585318.555 | E14: 5509806
A15: Proveedores locales | B15: USD | C15: =IFERROR(VLOOKUP(B15,'Base de Monedas'!A:B,2,0),"") -> Dólar estadounidense | D15: 952727274.7 | E15: 1136654712
A16: Total cuentas a pagar por comerciales | D16: =+SUM(D9:D15) -> 3.121503812e+10 | E16: =+SUM(E9:E15) -> 27231621593
A20: No Corrientes | B20: Simbología según ISO 4217 | C20: Indicación de Moneda | D20: =IFERROR(YEAR(Indice!B6),"2XX2") -> 2021 | E20: =IFERROR(YEAR(Indice!B6-365),"2XX1") -> 2020
A21: Proveedores - Entidades Relacionadas | C21: =IFERROR(VLOOKUP(B21,'Base de Monedas'!A:B,2,0),"") ->  | D21: 0 | E21: 0
A22: Otros proveedores del exterior | C22: =IFERROR(VLOOKUP(B22,'Base de Monedas'!A:B,2,0),"") ->  | D22: 0 | E22: 0
A23: Proveedores locales | C23: =IFERROR(VLOOKUP(B23,'Base de Monedas'!A:B,2,0),"") ->  | D23: 0 | E23: 0
A24: (nuevas cuentas a incluir) | C24: =IFERROR(VLOOKUP(B24,'Base de Monedas'!A:B,2,0),"") ->  | D24: 0 | E24: 0
A25: Total cuentas a pagar por comerciales | D25: =SUM($D$21:D24) -> 0 | E25: =SUM($D$21:E24) -> 0

Sheet Nota 14 (hidden)
A1: ATLANTIC S.A.E. | E1: BG | L1: BG
A4: NOTA 14 – PRESTAMOS A CORTO Y LARGO PLAZO
A5: En miles de guaranies
A6: (a) Equivalentes al tipo de cambio referencial de la fecha de presentacion
A7: (b) Obligaciones garantizadas por valor de guaraníes………..
A9: Corrientes
D10: =IFERROR(IF(Indice!B6="","2XX2",YEAR(Indice!B6)),"2XX2") -> 2021 | J10: =IFERROR(YEAR(Indice!B6-365),"2XX1") -> 2020
A11: Préstamos de Entidades Locales | B11: Vencimiento | C11: Símbolo de Moneda | D11: Moneda | E11: Importe (miles de Gs) | F11: Tipo de Garantía | H11: Vencimiento | I11: Símbolo de Moneda | J11: Moneda | K11: Importe (miles de Gs) | L11: Tipo de Garantía
A12: Nombre de la entidad financiera | D12: =IFERROR(VLOOKUP(C12,'Base de Monedas'!A:B,2,0),"") ->  | E12: 0 | J12: =IFERROR(VLOOKUP(I12,'Base de Monedas'!A:B,2,0),"") ->  | K12: 0
A13: Nombre de la entidad financiera | D13: =IFERROR(VLOOKUP(C13,'Base de Monedas'!A:B,2,0),"") ->  | E13: 0 | J13: =IFERROR(VLOOKUP(I13,'Base de Monedas'!A:B,2,0),"") ->  | K13: 0
A14: (incluir otras entidades) | D14: =IFERROR(VLOOKUP(C14,'Base de Monedas'!A:B,2,0),"") ->  | E14: 0 | J14: =IFERROR(VLOOKUP(I14,'Base de Monedas'!A:B,2,0),"") ->  | K14: 0
A15: Deudas bursátiles | D15: =IFERROR(VLOOKUP(C15,'Base de Monedas'!A:B,2,0),"") -> 
A16: Programa Global-G3- Serie 1 | B16: 2022-10-28 | C16: PYG | D16: =IFERROR(VLOOKUP(C16,'Base de Monedas'!A:B,2,0),"") -> Guaraní | E16: 2500000000 | F16: A sola firma | H16: 2022-10-28 | I16: PYG | J16: =IFERROR(VLOOKUP(I16,'Base de Monedas'!A:B,2,0),"") -> Guaraní | K16: 2500000000 | L16: A sola firma
A17: Préstamos de Entidades en el Exterior | D17: =IFERROR(VLOOKUP(C17,'Base de Monedas'!A:B,2,0),"") ->  | J17: =IFERROR(VLOOKUP(I17,'Base de Monedas'!A:B,2,0),"") -> 
A18: Nombre de la entidad financiera | D18: =IFERROR(VLOOKUP(C18,'Base de Monedas'!A:B,2,0),"") ->  | E18: 0 | J18: =IFERROR(VLOOKUP(I18,'Base de Monedas'!A:B,2,0),"") ->  | K18: 0
A19: Nombre de la entidad financiera | D19: =IFERROR(VLOOKUP(C19,'Base de Monedas'!A:B,2,0),"") ->  | E19: 0 | J19: =IFERROR(VLOOKUP(I19,'Base de Monedas'!A:B,2,0),"") ->  | K19: 0
A20: (incluir otras entidades) | D20: =IFERROR(VLOOKUP(C20,'Base de Monedas'!A:B,2,0),"") ->  | J20: =IFERROR(VLOOKUP(I20,'Base de Monedas'!A:B,2,0),"") -> 
A21: Deudas bursátiles | D21: =IFERROR(VLOOKUP(C21,'Base de Monedas'!A:B,2,0),"") ->  | E21: 0 | J21: =IFERROR(VLOOKUP(I21,'Base de Monedas'!A:B,2,0),"") ->  | K21: 0
A22: (Incluir programas de forma individual) | D22: =IFERROR(VLOOKUP(C22,'Base de Monedas'!A:B,2,0),"") ->  | J22: =IFERROR(VLOOKUP(I22,'Base de Monedas'!A:B,2,0),"") -> 
A23: Intereses préstamos entidades financieras a pagar | D23: =IFERROR(VLOOKUP(C23,'Base de Monedas'!A:B,2,0),"") ->  | J23: =IFERROR(VLOOKUP(I23,'Base de Monedas'!A:B,2,0),"") -> 
A24: Intereses a pagar | D24: =IFERROR(VLOOKUP(C24,'Base de Monedas'!A:B,2,0),"") ->  | E24: 0 | J24: =IFERROR(VLOOKUP(I24,'Base de Monedas'!A:B,2,0),"") ->  | K24: 0
A25: (-) Intereses a Devengar | E25: 0 | K25: 0
A26: Intereses deudas bursátiles a pagar | D26: =IFERROR(VLOOKUP(C26,'Base de Monedas'!A:B,2,0),"") -> 
A27: Intereses a pagar | C27: PYG | D27: =IFERROR(VLOOKUP(C27,'Base de Monedas'!A:B,2,0),"") -> Guaraní | E27: 1788294521 | I27: PYG | J27: Guaraní | K27: 1965476027
A28: (-) Intereses a Devengar | C28: PYG | D28: =IFERROR(VLOOKUP(C28,'Base de Monedas'!A:B,2,0),"") -> Guaraní | E28: -1783126714 | I28: PYG | J28: Guaraní | K28: -1959722604
A29: Total | D29: =IFERROR(VLOOKUP(C29,'Base de Monedas'!A:B,2,0),"") ->  | E29: =SUM(E10:E28) -> 2505167807 | K29: =SUM(K10:K28) -> 2505753423
A32: No Corrientes
D33: =IFERROR(YEAR(Indice!B6),"2XX2") -> 2021 | J33: =IFERROR(YEAR(Indice!B6-365),"2XX1") -> 2020
A34: Préstamos de Entidades Locales | B34: Vencimiento | C34: Símbolo de Moneda | D34: Moneda | E34: Importe (miles de Gs) | F34: Tipo de garantía | H34: Vencimiento | I34: Símbolo de Moneda | J34: Moneda | K34: Importe (miles de Gs) | L34: Tipo de Garantía
A35: Nombre de la entidad financiera | D35: =IFERROR(VLOOKUP(C35,'Base de Monedas'!A:B,2,0),"") ->  | J35: =IFERROR(VLOOKUP(I35,'Base de Monedas'!A:B,2,0),"") -> 
A36: Nombre de la entidad financiera | D36: =IFERROR(VLOOKUP(C36,'Base de Monedas'!A:B,2,0),"") ->  | J36: =IFERROR(VLOOKUP(I36,'Base de Monedas'!A:B,2,0),"") -> 
A37: (incluir otras entidades) | D37: =IFERROR(VLOOKUP(C37,'Base de Monedas'!A:B,2,0),"") ->  | J37: =IFERROR(VLOOKUP(I37,'Base de Monedas'!A:B,2,0),"") -> 
A38: Deudas bursátiles | D38: =IFERROR(VLOOKUP(C38,'Base de Monedas'!A:B,2,0),"") ->  | J38: =IFERROR(VLOOKUP(I38,'Base de Monedas'!A:B,2,0),"") -> 
A39: Programa Global-G3- Serie 1 | B39: 2022-10-28 | C39: PYG | D39: =IFERROR(VLOOKUP(C39,'Base de Monedas'!A:B,2,0),"") -> Guaraní | E39: 250000000 | F39: A sola firma | H39: 2022-10-28 | I39: PYG | J39: =IFERROR(VLOOKUP(I39,'Base de Monedas'!A:B,2,0),"") -> Guaraní | K39: 2500000000 | L39: A sola firma
A40: Programa Global-G3- Serie 2 | B40: 2024-10-25 | C40: PYG | D40: =IFERROR(VLOOKUP(C40,'Base de Monedas'!A:B,2,0),"") -> Guaraní | E40: 5000000000 | F40: A sola firma | H40: 2024-10-25 | I40: PYG | J40: =IFERROR(VLOOKUP(I40,'Base de Monedas'!A:B,2,0),"") -> Guaraní | K40: 5000000000 | L40: A sola firma
A41: Programa Global-G3- Serie 3 | B41: 2027-10-22 | C41: PYG | D41: =IFERROR(VLOOKUP(C41,'Base de Monedas'!A:B,2,0),"") -> Guaraní | E41: 7500000000 | F41: A sola firma | H41: 2027-10-22 | I41: PYG | J41: =IFERROR(VLOOKUP(I41,'Base de Monedas'!A:B,2,0),"") -> Guaraní | K41: 7500000000 | L41: A sola firma
A42: Préstamos de Entidades en el Exterior | D42: =IFERROR(VLOOKUP(C42,'Base de Monedas'!A:B,2,0),"") ->  | J42: =IFERROR(VLOOKUP(I42,'Base de Monedas'!A:B,2,0),"") -> 
A43: Nombre de la entidad financiera | D43: =IFERROR(VLOOKUP(C43,'Base de Monedas'!A:B,2,0),"") ->  | E43: 0 | J43: =IFERROR(VLOOKUP(I43,'Base de Monedas'!A:B,2,0),"") ->  | K43: 0
A44: Nombre de la entidad financiera | D44: =IFERROR(VLOOKUP(C44,'Base de Monedas'!A:B,2,0),"") ->  | E44: 0 | J44: =IFERROR(VLOOKUP(I44,'Base de Monedas'!A:B,2,0),"") ->  | K44: 0
A45: (incluir otras entidades) | D45: =IFERROR(VLOOKUP(C45,'Base de Monedas'!A:B,2,0),"") ->  | J45: =IFERROR(VLOOKUP(I45,'Base de Monedas'!A:B,2,0),"") -> 
A46: Deudas bursátiles | D46: =IFERROR(VLOOKUP(C46,'Base de Monedas'!A:B,2,0),"") ->  | E46: 0 | J46: =IFERROR(VLOOKUP(I46,'Base de Monedas'!A:B,2,0),"") ->  | K46: 0
A47: (Incluir programas de forma individual) | D47: =IFERROR(VLOOKUP(C47,'Base de Monedas'!A:B,2,0),"") ->  | J47: =IFERROR(VLOOKUP(I47,'Base de Monedas'!A:B,2,0),"") -> 
A48: Intereses préstamos entidades financieras a pagar | D48: =IFERROR(VLOOKUP(C48,'Base de Monedas'!A:B,2,0),"") ->  | J48: =IFERROR(VLOOKUP(I48,'Base de Monedas'!A:B,2,0),"") -> 
A49: Intereses a pagar | D49: =IFERROR(VLOOKUP(C49,'Base de Monedas'!A:B,2,0),"") ->  | E49: 0 | J49: =IFERROR(VLOOKUP(I49,'Base de Monedas'!A:B,2,0),"") ->  | K49: 0
A50: (-) Intereses a Devengar | E50: 0 | K50: 0
A51: Intereses deudas bursátiles a pagar | D51: =IFERROR(VLOOKUP(C51,'Base de Monedas'!A:B,2,0),"") ->  | J51: =IFERROR(VLOOKUP(I51,'Base de Monedas'!A:B,2,0),"") -> 
A52: Intereses a pagar | C52: PYG | D52: =IFERROR(VLOOKUP(C52,'Base de Monedas'!A:B,2,0),"") -> Guaraní | E52: 4577773974 | I52: PYG | J52: Guaraní | K52: 5899767125
A53: (-) Intereses a Devengar | C53: PYG | D53: =IFERROR(VLOOKUP(C53,'Base de Monedas'!A:B,2,0),"") -> Guaraní | E53: -4577773974 | I53: PYG | J53: Guaraní | K53: -5899767125
A54: Total | D54: =IFERROR(VLOOKUP(C54,'Base de Monedas'!A:B,2,0),"") ->  | E54: =SUM(E35:E53) -> 12750000000 | K54: =SUM(K35:K53) -> 15000000000
J55: =IFERROR(VLOOKUP(I55,'Base de Monedas'!H:I,2,0),"") -> 

Sheet Nota 15 (hidden)
A1: ATLANTIC S.A.E. | D1: BG
A5: NOTA 15 – PORCION CORRIENTE DE LA DEUDA A LARGO PLAZO
B7: En miles de guaranies
A8: Porción corriente de la deuda a largo plazo | B8: =IFERROR(IF(Indice!B6="","2XX2",YEAR(Indice!B6)),"2XX2") -> 2021 | C8: =IFERROR(YEAR(Indice!B6-365),"2XX1") -> 2020
A9: Cuentas por pagar comerciales | B9: 0 | C9: 0
A10: Préstamos bancarios | B10: 0 | C10: 0
A11: Bonos bursátiles | B11: 0 | C11: 0
A12: Intereses bancarios a pagar | B12: 0 | C12: 0
A13: Intereses bursatiles a pagar | B13: 0 | C13: 0
A14: =+'Nota 14'!A53 -> (-) Intereses a Devengar | B14: 0 | C14: 0
A15: Total general | B15: =SUM($B$9:B14) -> 0 | C15: =SUM($C$9:C14) -> 0

Sheet Nota 16 (hidden)
A1: ATLANTIC S.A.E. | F1: BG
A4: NOTA 16 – REMUNERACIONES Y CARGAS SOCIALES A PAGAR
B6: En miles de guaranies
A7: Remuneraciones y cargas sociales a pagar | B7: =IFERROR(IF(Indice!B6="","2XX2",YEAR(Indice!B6)),"2XX2") -> 2021 | C7: =IFERROR(YEAR(Indice!B6-365),"2XX1") -> 2020
A8: Sueldo y otras remuneraciones a pagar | B8: 61169720 | C8: 42482247
A9: Aportes y retenciones a pagar | B9: 244897416 | C9: 222829950
A10: Remuneraciones al personal superior a pagar | B10: 0 | C10: 0
A11: Aguinaldos a Pagar | B11: 1191771437 | C11: 0
A12: Total | B12: =+SUM(B8:B11) -> 1497838573 | C12: =+SUM(C8:C11) -> 265312197

Sheet Nota 17 (hidden)
A1: ATLANTIC S.A.E. | G1: BG
A5: NOTA 17 – IMPUESTOS A PAGAR
B7: En miles de guaranies
A8: Impuestos a pagar | B8: =IFERROR(IF(Indice!B6="","2XX2",YEAR(Indice!B6)),"2XX2") -> 2021 | C8: =IFERROR(YEAR(Indice!B6-365),"2XX1") -> 2020
A9: Impuesto a la renta a pagar | B9: 4930007014 | C9: 2460376636
A10: Otros impuestos a pagar | B10: 0 | C10: 0
A12: Total | B12: =+B10+B9 -> 4930007014 | C12: =+C10+C9 -> 2460376636

Sheet Nota 18 (hidden)
A1: ATLANTIC S.A.E. | D1: BG
A4: NOTA 18 - PROVISIONES
B6: En miles de guaranies
A7: Provisiones | B7: =IFERROR(IF(Indice!B6="","2XX2",YEAR(Indice!B6)),"2XX2") -> 2021 | C7: =IFERROR(YEAR(Indice!B6-365),"2XX1") -> 2020
A9: Alquileres a Pagar | B9: 0 | C9: 0
A10: Servicios Basicos a Pagar | B10: 0 | C10: 0
A11: Honorarios Profesionales a Pagar | B11: 0 | C11: 0
A12: (Indicar cuentas) | B12: 0 | C12: 0
A13: Total | B13: =SUM($B$9:B12) -> 0 | C13: =SUM($C$9:C12) -> 0

Sheet Nota 19 (hidden)
A1: ATLANTIC S.A.E. | D1: BG
A3: NOTA 19 – OTROS PASIVOS CORRIENTES y NO CORRIENTES
A4: En miles de guaranies
A6: Corrientes | B6: =IFERROR(IF(Indice!B6="","2XX2",YEAR(Indice!B6)),"2XX2") -> 2021 | C6: =IFERROR(YEAR(Indice!B6-365),"2XX1") -> 2020 | E6: No Corrientes | F6: =IFERROR(IF(Indice!B6="","2XX2",YEAR(Indice!B6)),"2XX2") -> 2021 | G6: =IFERROR(YEAR(Indice!B6-365),"2XX1") -> 2020
A7: Retencion de IVA a pagar | B7: 230949743 | C7: 0 | E7: Retencion de IVA a pagar | F7: 0 | G7: 0
A8: Retencion Impuesto a la renta a Pagar | B8: 50922534 | C8: 142633739 | E8: Retencion Impuesto a la renta a Pagar | F8: 0 | G8: 0
A9: Impuestos diferidos | B9: 0 | C9: 0 | E9: Impuestos diferidos | F9: 0 | G9: 0
A10: Otros ingresos diferidos (detallar cuenta) | B10: 0 | C10: 0 | E10: Otros ingresos diferidos | F10: 0 | G10: 0
A11: Otros Pasivos con Entidades relacionadas | B11: 0 | C11: 0 | E11: Otros Pasivos con Entidades relacionadas | F11: 0 | G11: 0
A12: Previsiones para contingencias/Indemnizaciones y despidos | B12: 0 | C12: 0 | E12: Previsiones para contingencias/Indemnizaciones y despidos | F12: 0 | G12: 0
A13: Anticipos de Clientes | B13: 0 | C13: 704553077 | E13: (nuevas cuentas a incluir)
A14: Anticipos de clientes M.E | B14: 110907013 | C14: 10355172398 | E14: Total | F14: =SUM(F7:F13) -> 0 | G14: =SUM(G7:G13) -> 0
A15: Créditos a Regularizar | B15: 7425688 | C15: 16203330
A16: Revalorizacion Otros Pasivos | B16: 0 | C16: -96576355
A17: Cheques Emitidos | B17: 1344791939 | C17: 1703829626
A19: Total | B19: =+SUM(B7:B17) -> 1744996917 | C19: =+SUM(C7:C17) -> 12825815815

Sheet Nota 20 (hidden)
A1: ATLANTIC S.A.E. | D1: BG
A4: NOTA 20 – CAPITAL INTEGRADO
A6: Fecha | B6: =IFERROR(IF(Indice!B6="","2XX2",YEAR(Indice!B6)),"2XX2") -> 2021 | C6: =IFERROR(YEAR(Indice!B6-365),"2XX1") -> 2020
A7: Monto Capital Social | B7: 100000000000 | C7: 100000000000
A8: Monto Capital Integrado | B8: 89040000000 | C8: 89040000000
A9: Cantidad de Acciones | B9: 100000 | C9: 100000
A10: Valor Nominal de Acciones | B10: 1000000 | C10: 1000000
A11: Total | B11: =+B8 -> 89040000000 | C11: =+C8 -> 89040000000

Sheet Nota 21
A1: ATLANTIC S.A.E. | F1: BG
A4: NOTA 21 – RESERVAS
B6: En miles de guaranies
B7: =IFERROR(IF(Indice!B6="","2XX2",YEAR(Indice!B6)),"2XX2") -> 2021 | C7: =IFERROR(YEAR(Indice!B6-365),"2XX1") -> 2020
A8: a Reserva de revalúo | B8: 19301479530 | C8: 19301479530
A12: b Reserva legal | B12: 9789783914 | C12: 9237272666
A16: c Reservas estatutarias
A20: d Reservas facultativas | B20: 10500595077 | C20: 2881363
A21: d.1. (nuevas cuentas a incluir)
A22: d.2. (nuevas cuentas a incluir)

Sheet Nota 22
A1: ATLANTIC S.A.E. | F1: BG
A4: NOTA 21 – DIFERENCIA TRANSITORIA POR CONVERSION
B6: En miles de guaranies
B7: =IFERROR(IF(Indice!B6="","2XX2",YEAR(Indice!B6)),"2XX2") -> 2021 | C7: =+IFERROR(YEAR(Indice!B6-365),"2XX1") -> 2020
A8: Diferencia transitoria por conversión
A10: No aplicable a la Sociedad.

Sheet Nota 23
A1: ATLANTIC S.A.E. | F1: BG
A4: NOTA 23 – RESULTADOS ACUMULADOS
B6: En miles de guaranies
B7: =IFERROR(IF(Indice!B6="","2XX2",YEAR(Indice!B6)),"2XX2") -> 2021 | C7: =+IFERROR(YEAR(Indice!B6-365),"2XX1") -> 2020
A8: Resultado de ejercicios anteriores | B8: 0 | C8: 0
A9: Resultado del ejercicio actual | B9: 41930314018 | C9: 11050224962
A10: Totales | B10: =+B9+B8 -> 41930314018 | C10: =+C9+C8 -> 11050224962
A12: La Sociedad adopta como política dar destino a su utilidad del ejercicio anterior, posterior a la realización de la Asamblea General Ordinaria.

Sheet Nota 24
A1: ATLANTIC S.A.E. | F1: BG
A4: NOTA 24 – INTERES MINORITARIO
B6: En miles de guaranies
B7: =IFERROR(IF(Indice!B6="","2XX2",YEAR(Indice!B6)),"2XX2") -> 2021 | C7: =+IFERROR(YEAR(Indice!B6-365),"2XX1") -> 2020
A8: Interes Minoritario
A10: No aplicable a la Sociedad.

Sheet Nota 25
A1: ATLANTIC S.A.E. | E1: ER
A5: NOTA 25 – VENTAS
B8: En miles de guaranies
B9: =IFERROR(IF(Indice!B6="","2XX2",YEAR(Indice!B6)),"2XX2") -> 2021 | C9: =+IFERROR(YEAR(Indice!B6-365),"2XX1") -> 2020
A10: Ventas
A11: Ventas linea de negocio 1
A12: Local | B12: =+B13+B14 -> 184723638112 | C12: 156194556543
A13: Contado | B13: 28906892456 | C13: 0
A14: Crédito | B14: =190282422850-34465677194 -> 155816745656 | C14: 0
A15: Exterior | B15: 0 | C15: 0
A16: Contado | B16: 0 | C16: 0
A17: Crédito | B17: 0 | C17: 0
A18: Ventas linea de negocio 2
A19: Local | B19: 0 | C19: 0
A20: Contado | B20: 0 | C20: 0
A21: Crédito | B21: 0 | C21: 0
A22: Exterior | B22: 0 | C22: 0
A23: Contado | B23: 0 | C23: 0
A24: Crédito | B24: 0 | C24: 0
A25: (nuevas lineas de negocio a incluir)
A26: Total | B26: =+B12 -> 184723638112 | C26: =+C12 -> 156194556543

Sheet Nota 26
A1: ATLANTIC S.A.E. | E1: ER
A5: NOTA 26 - COSTO DE VENTAS
B8: Miles de guaraníes
A9: Costo de ventas | B9: =IFERROR(IF(Indice!B6="","2XX2",YEAR(Indice!B6)),"2XX2") -> 2021 | C9: =+IFERROR(YEAR(Indice!B6-365),"2XX1") -> 2020
A10: Linea de negocio 1
A11: Existencia inicial del inventario | B11: 71675838697 | C11: 69022171199
A12: + Compra de bienes y servicios | B12: 156619104833 | C12: 117063648998
A13: + Costo de producción | B13: 0 | C13: 0
A14: - Existencia final de inventario | B14: -83733184397 | C14: -62547557587
A15: Linea de negocio 2
A16: Existencia inicial del inventario
A17: + Compra de bienes y servicios
A18: + Costo de producción
A19: - Existencia final de inventario
A20: (nuevas lineas de negocio a incluir)
A21: Total costo de ventas | B21: =SUM(B11:B20) -> 144561759133 | C21: =SUM(C11:C20) -> 123538262610

Sheet Nota 27
A1: ATLANTIC S.A.E. | G1: ER
A5: NOTA 27 - GASTOS
A6: (Esta nota deberá ser incluida cuando en el estado de resultados se haga mención a una cuenta de carácter general o cuyo nombre no permita una adecuada identificación de la naturaleza del gasto y su importe sea significativo)
A8: El rubro está compuesto de la siguiente forma:
A10: Miles de guaraníes
C11: =IFERROR(IF(Indice!B6="","2XX2",YEAR(Indice!B6)),"2XX2") -> 2021 | F11: =+IFERROR(YEAR(Indice!B6-365),"2XX1") -> 2020
B12: Gastos de Ventas | C12: Gastos Administrativos | D12: Total | E12: Gastos de Ventas | F12: Gastos Administrativos | G12: Total
A13: Movilidad y viáticos | B13: 262100814 | C13: 1974488 | D13: =+C13+B13 -> 264075302 | E13: 26861482 | F13: 224459919 | G13: =+F13+E13 -> 251321401
A14: Gastos de alquiler | B14: 0 | C14: 1386864593 | D14: 1386864593 | E14: 0 | F14: 1042340352 | G14: 1042340352
A15: Computación y redes | B15: 606482475 | C15: 336273922 | D15: 942756397 | E15: 387792123 | F15: 871784620 | G15: 1259576743
A16: Impuestos y tasas | B16: 20041237 | C16: 753039172 | D16: 773080409 | E16: 18604517 | F16: 404143844 | G16: 422748361
A17: Gastos de reparación y mantenimiento | B17: 52734348 | C17: 299495210 | D17: 352229558 | E17: 8596939 | F17: 245977529 | G17: 254574468
A18: Seguros pagados | B18: 18830778 | C18: 17958767 | D18: 36789545 | E18: 14256597 | F18: 18817182 | G18: 33073779
A19: Gastos de Rodados | B19: 467103486 | C19: 34378972 | D19: 501482458 | E19: 5128671 | F19: 557751489 | G19: 562880160
A20: Remuneraciones de administradores, directores, síndicos y consejo de vigilancia | B20: 0 | C20: 2612241673 | D20: 2612241673 | E20: 0 | F20: 2487591370 | G20: 2487591370
A21: Sueldos y Jornales | B21: 3188788647 | C21: 2043475332 | D21: 5232263979 | E21: 2809099485 | F21: 3861140371 | G21: 6670239856
A22: Contribuciones Sociales | B22: 789989225 | C22: 426046917 | D22: 1216036142 | E22: 460031376 | F22: 604658356 | G22: 1064689732
A23: Regalías y Honorarios por servicios técnicos | B23: 3265890688 | C23: 8974163912 | D23: 12240054600 | E23: 3823147799 | F23: 1861107934 | G23: 5684255733
A24: Gastos de Publicidad y Propaganda | B24: 673519402 | C24: 9653231 | D24: 683172633 | E24: 658148329 | F24: 3352429 | G24: 661500758
A25: Intereses a bancos e instituciones financieras | B25: 0 | C25: 1498589041 | D25: 1498589041 | E25: 0 | F25: 253410823 | G25: 253410823
A26: Depreciación bienes de uso | B26: 189506847 | C26: 782643080 | D26: 972149927 | E26: 156731782 | F26: 717690843 | G26: 874422625
A27: Servicios básicos | B27: 58834618 | C27: 196209163 | D27: 255043781 | E27: 38897182 | F27: 194373013 | G27: 233270195
A28: Donaciones | B28: 1515247 | C28: 736287682 | D28: 737802929 | E28: 25535100 | F28: 451312955 | G28: 476848055
A29: Otros gastos | B29: =783492408+41813183+580 -> 825306171 | C29: =859316688 -> 859316688 | D29: 1684622859 | E29: =1623204678 -> 1623204678 | F29: 1849445452 | G29: =+F29+E29 -> 3472650130
A30: Total | B30: =SUM(B13:B29) -> 10420643983 | C30: 20968611843 | D30: 31389255826 | E30: 10056036060 | F30: 15649358481 | G30: 25705394541

Sheet Nota 28
A1: ATLANTIC S.A.E. | E1: ER
A4: Nota 28 - Otros Ingresos y gastos operativos
A6: Miles de guaraníes
A8: Otros ingresos | B8: =IFERROR(IF(Indice!B6="","2XX2",YEAR(Indice!B6)),"2XX2") -> 2021 | C8: =+IFERROR(YEAR(Indice!B6-365),"2XX1") -> 2020 | E8: Otros gastos | F8: =IFERROR(IF(Indice!B6="","2XX2",YEAR(Indice!B6)),"2XX2") -> 2021 | G8: =+IFERROR(YEAR(Indice!B6-365),"2XX1") -> 2020
A10: Ingresos Varios | B10: 406305971 | C10: 534885820 | E10: Egresos no operativos | F10: 899340524 | G10: 0
A11: Ingresos por Ventas Varias | B11: =9792369831+36784386-242735650 -> 9586418567 | C11: 1002873279
A12: Gastos Recuperados | B12: 47425184 | C12: 23173364
A13: Ingresos por Flete | B13: 6639434 | C13: 4852372
A14: Descuentos Obtenidos | B14: 972535442 | C14: 583148494
A15: Utilidad por Venta de Activo | B15: 31087742479 | C15: 0
A16: Total | B16: =SUM(B10:B15) -> 42107067077 | C16: =+SUM(C10:C15) -> 2148933329 | E16: Total | F16: =+SUM(F10:F14) -> 899340524 | G16: =+SUM(G10:G14) -> 0

Sheet Nota 29
A1: ATLANTIC S.A.E. | E1: ER
A5: NOTA 29 - INGRESOS Y GASTOS FINANCIEROS NETOS
A6: Miles de guaraníes
A8: Ingresos Financieros netos | B8: =IFERROR(IF(Indice!B6="","2XX2",YEAR(Indice!B6)),"2XX2") -> 2021 | C8: =+IFERROR(YEAR(Indice!B6-365),"2XX1") -> 2020 | E8: Gastos Financieros netos | F8: =IFERROR(IF(Indice!B6="","2XX2",YEAR(Indice!B6)),"2XX2") -> 2021 | G8: =+IFERROR(YEAR(Indice!B6-365),"2XX1") -> 2020
A10: Intereses Cobrados Por C/A | B10: 280335712 | C10: 1557394 | E10: Intereses Pagados | F10: 1498589041 | G10: 0
A11: Diferencias de Cambios | B11: 0 | C11: 0 | E11: Comisión y Gastos Financieros | F11: 10615976 | G11: 0
A12: Recupero por Incobrable | B12: 41818182 | E12: Creditos Liquidados por Incobrables | F12: 1595975690 | G12: 0
A13: INTERESES FINANCIEROS | B13: 5581 | E13: Diferencia de Cambios | F13: 337007442 | G13: 287915803
E14: Total gastos financieros | F14: =SUM(F10:F13) -> 3442188149 | G14: 287915803
A15: Total ingresos financieros | B15: =SUM(B10:B14) -> 322159475 | C15: 1557394

Sheet Nota 30
A1: ATLANTIC S.A.E. | E1: ER
A4: Nota 34 - Resultado de inversiones en asociadas
A5: Miles de guaraníes
A8: Resultado de inversiones en asociadas | B8: =IFERROR(IF(Indice!B6="","2XX2",YEAR(Indice!B6)),"2XX2") -> 2021 | C8: =+IFERROR(YEAR(Indice!B6-365),"2XX1") -> 2020
A10: No aplicable a la Sociedad
A16: Total | B16: =SUM($B9:B15) -> 0 | C16: =SUM($C9:C15) -> 0

Sheet Nota 31
A1: ATLANTIC S.A.E. | E1: ER
A4: Nota 31 - Resultado participación minoritaria
A5: Miles de guaraníes
A8: Resultado participación minoritaria | B8: =IFERROR(IF(Indice!B6="","2XX2",YEAR(Indice!B6)),"2XX2") -> 2021 | C8: =+IFERROR(YEAR(Indice!B6-365),"2XX1") -> 2020
A10: No aplicable a la Sociedad
A16: Total | B16: =SUM($B9:B15) -> 0 | C16: =SUM($C9:C15) -> 0

Sheet Nota 32
A1: ATLANTIC S.A.E. | E1: ER
A4: Nota 32 - IMPUESTO A LA RENTA
A5: En miles de guaraníes
B7: =IFERROR(IF(Indice!B6="","2XX2",YEAR(Indice!B6)),"2XX2") -> 2021 | C7: =+IFERROR(YEAR(Indice!B6-365),"2XX1") -> 2020
A8: Impuesto a la renta | B8: 4930007014 | C8: 883352598
A14: Total | B14: =+B8 -> 4930007014 | C14: =+C8 -> 883352598

Sheet Nota 33
A1: ATLANTIC S.A.E. | E1: ER
A4: Nota 33 - Resultado extraordinario neto de impuesto a la renta
A5: En miles de guaraníes
B7: =IFERROR(IF(Indice!B6="","2XX2",YEAR(Indice!B6)),"2XX2") -> 2021 | C7: =+IFERROR(YEAR(Indice!B6-365),"2XX1") -> 2020
A8: Conceptos
A9: (Detallar)
A11: Al 30 de setiembre de 2021 y 2020 la Sociedad no ha tenido ingresos ni egresos extraordinarios.
A15: Total | B15: =SUM($B8:B14) -> 0 | C15: =SUM($C8:C14) -> 0

Sheet Nota 34
A1: ATLANTIC S.A.E. | E1: ER
A4: Nota 34 - Resultado sobre actividades discontinuadas neto de impuesto a la renta
A5: En miles de guaraníes
A7: Resultado sobre actividades discontinuadas neto de impuesto a la renta | B7: =IFERROR(IF(Indice!B6="","2XX2",YEAR(Indice!B6)),"2XX2") -> 2021 | C7: =+IFERROR(YEAR(Indice!B6-365),"2XX1") -> 2020
A9: (nueva cuenta a incluir) | B9: 0 | C9: 0
A10: Subtotal | B10: 0 | C10: 0
A11: - Impuesto a la renta | B11: 0 | C11: 0
A12: Total | B12: =SUM($B8:B11) -> 0 | C12: =SUM($C8:C11) -> 0
A14: Al 30 de setiembre de 2021 y 2020 la Sociedad no ha tenido actividades discontinuadas.

Sheet Nota 35
A1: ATLANTIC S.A.E. | E1: ER
A4: NOTA 35- UTILIDAD (PÉRDIDA) NETA DEL AÑO Y POR ACCION ORDINARIA
A5: La Sociedad calcula la utilidad (pérdida) neta por acción sobre la base de la utilidad (pérdida) del año y 100.000 acciones ordinarias (aclarar las características de las acciones) de valor nominal Gs. 1.000.000 cada una con derecho a 1 voto por acción (aclarar el derecho de voto que tiene cada tipo de acción).
B7: =IFERROR(IF(Indice!B6="","2XX2",YEAR(Indice!B6)),"2XX2") -> 2021 | C7: =+IFERROR(YEAR(Indice!B6-365),"2XX1") -> 2020
A8: Cantidad de Acciones Ordinarias en Circulación | B8: 100000 | C8: 100000
A9: Utilidad Neta | B9: 41930314018 | C9: 7930497942
A10: Utilidad Neta por Acción Ordinaria | B10: 419303.1402 | C10: 79304.97942

Sheet Nota 36
A1: ATLANTIC S.A.E. | E1: Indice
A4: NOTA 36 - ACTIVOS GRAVADOS
A6: Los siguientes bienes de propiedad de la Sociedad han sido hipotecados y prendados en garantía de obligaciones financieras.
A8: =IFERROR("Al "&DAY(Indice!B6)&" de "&VLOOKUP(MONTH(Indice!B6),Indice!S:T,2,0)&" de "&YEAR(Indice!B6-365),"Al dia... de mes… de año 2XX1…") -> Al 30 de Septiembre de 2020
A9: Tipo de Activo | B9: Datos del activo gravado | C9: Tipo de garantía | D9: Importe (indicar moneda) | E9: A favor de
A10: No aplicable.
A15: =IFERROR("Al "&DAY(Indice!B6)&" de "&VLOOKUP(MONTH(Indice!B6),Indice!S:T,2,0)&" de "&YEAR(Indice!B6-1),"Al dia... de mes… de año 2XX2…") -> Al 30 de Septiembre de 2021
A16: Tipo de Activo | B16: Datos del activo gravado | C16: Tipo de garantía | D16: Importe (indicar moneda) | E16: A favor de
A17: No aplicable.

Sheet Nota 37
A1: ATLANTIC S.A.E. | E1: Indice
A4: NOTA 37 - CONTINGENCIAS Y COMPROMISOS
A5: (Esta nota debería incluir un breve detalle de contratos con terceros, vigente a la fecha de cierre del ejercicio, cuyo incumplimiento o cláusula específica podrían generar obligaciones contingentes para el cliente).
A6: =IFERROR("Los principales contratos suscriptos por la Sociedad, vigentes al "&DAY(Indice!B6)&" de "&VLOOKUP(MONTH(Indice!B6),Indice!S:T,2,0)&" de "&YEAR(Indice!B6-1)&" son:","Los principales contratos suscriptos por la Sociedad, vigentes al … de … 20X2 son:") -> Los principales contratos suscriptos por la Sociedad, vigentes al 30 de Septiembre de 2021 son:
A7: a)
A8: b)
A11: =IFERROR("Al "&DAY(Indice!B6)&" de "&VLOOKUP(MONTH(Indice!B6),Indice!S:T,2,0)&" de "&YEAR(Indice!B6-1)&" no existen situaciones contingentes, ni reclamos que pudieran resultar en la generación de obligaciones para la Sociedad adicionales a las que se presentan en estos estados financieros.","Al … de …………... 20X2 no existen situaciones contingentes, ni reclamos que pudieran resultar en la generación de obligaciones para la Sociedad adicionales a las que se presentan en estos estados financieros.") -> Al 30 de Septiembre de 2021 no existen situaciones contingentes, ni reclamos que pudieran resultar en la generación de obligaciones para la Sociedad adicionales a las que se presentan en estos estados financieros.
A15: Obs.: Esta información debe estar ajustada a lo requerido por la Norma de Información Financiera N° 5 Contingencias y sucesos que ocurren después de la fecha del balance.

Sheet Nota 38
A1: ATLANTIC S.A.E. | D1: Índice
A4: NOTA 38 - IMPUESTO DIFERIDO
A5: En miles de guaraníes
A6: Al 30 de setiembre de 2021 la Sociedad constituyó una provisión para impuesto a la renta de Guaraníes 1.294.927.800 (Al 31 de de diciembre de 2020: Guaraníes 4.930.007.014).

Sheet Nota 39
A1: ATLANTIC S.A.E. | E1: Indice
A5: NOTA 39 - HECHOS POSTERIORES
A6: (En caso en que entre la fecha del cierre del ejercicio y la fecha de emisión de los estados financieros existan hechos posteriores significativos deberá evaluarse el tipo de hecho posterior del que se trate y modificar esta nota según corresponda).
A9: Entre la fecha de cierre del ejercicio y la fecha de preparación de estos estados financieros intermedios, no han ocurrido hechos significativos de carácter financiero o de otra índole que afecten la situación financiera o los resultados de la Sociedad al 30 de setiembre de 2021.

Sheet Nota 40
A1: ATLANTIC S.A.E. | C1: Indice
A5: NOTA 40 - SALDOS Y TRANSACCIONES CON PARTES RELACIONADAS
A6: Miles de guaraníes
B10: =IFERROR(IF(Indice!B6="","2XX2",YEAR(Indice!B6)),"2XX2") -> 2021 | C10: =+IFERROR(YEAR(Indice!B6-365),"2XX1") -> 2020
A11: ACTIVO
A12: Inversiones temporales
A13: Cuentas a cobrar comerciales - ALAS S.A. | B13: 1514448562 | C13: 1664046306
A14: Otros créditos | B14: 0 | C14: 0
A15: Total activo | B15: =+SUM(B12:B14) -> 1514448562 | C15: =+SUM(C12:C14) -> 1664046306
A16: PASIVO
A17: Cuentas por pagar comerciales - ALAS S.A. | B17: 160309333.3 | C17: 521133131
A18: Préstamos a corto plazo | B18: 0 | C18: 0
A19: Provisiones | B19: 0 | C19: 0
A20: Préstamos a largo plazo | B20: 0 | C20: 0
A21: Otros pasivos | B21: 0 | C21: 0
A22: Total pasivo | B22: =+SUM(B17:B21) -> 160309333.3 | C22: =+SUM(C17:C21) -> 521133131
B26: =IFERROR(IF(Indice!B6="","2XX2",YEAR(Indice!B6)),"2XX2") -> 2021 | C26: =+IFERROR(YEAR(Indice!B6-365),"2XX1") -> 2020
A27: Costo de ventas
A28: Compras a ALAS S.A. | B28: 0 | C28: 0
A30: Gastos administrativos
A31: Honorarios por servicios | B31: =+B32 -> 0 | C31: =+C32 -> 0
A32: Descalzo Asociados (Sindicatura) | B32: 0 | C32: 0
A33: Remuneración Personal Superior | B33: =+SUM(B34:B37) -> 0 | C33: =+SUM(C34:C37) -> 0
A34: Nordahl Siemens | C34: 0
A35: Eldon Unruh | B35: 0 | C35: 0
A36: Carlos T. Walde | B36: 0 | C36: 0
A37: Roland Walde | B37: 0 | C37: 0

Sheet Base de Monedas
A1: PYG | B1: Guaraní | C1: Índice
A2: USD | B2: Dólar estadounidense
A3: EUR | B3: Euro
A4: AED | B4: Dírham de los Emiratos Árabes Unidos
A5: AFN | B5: Afgani
A6: ALL | B6: Lek
A7: AMD | B7: Dram armenio
A8: ANG | B8: Florín antillano neerlandés
A9: AOA | B9: Kwanza
A10: ARS | B10: Peso argentino
A11: AUD | B11: Dólar australiano
A12: AWG | B12: Florín arubeño
A13: AZN | B13: Manat azerbaiyano
A14: BAM | B14: Marco convertible
A15: BBD | B15: Dólar de Barbados
A16: BDT | B16: Taka
A17: BGN | B17: Lev búlgaro
A18: BHD | B18: Dinar bareiní
A19: BIF | B19: Franco de Burundi
A20: BMD | B20: Dólar bermudeño
A21: BND | B21: Dólar de Brunéi
A22: BOB | B22: Boliviano
A23: BOV | B23: MVDOL
A24: BRL | B24: Real brasileño
A25: BSD | B25: Dólar bahameño
A26: BTN | B26: Ngultrum
A27: BWP | B27: Pula
A28: BYN | B28: Rublo bielorruso
A29: BZD | B29: Dólar beliceño
A30: CAD | B30: Dólar canadiense
A31: CDF | B31: Franco congoleño
A32: CHE | B32: Euro WIR
A33: CHF | B33: Franco suizo
A34: CHW | B34: Franco WIR
A35: CLF | B35: Unidad de fomento
A36: CLP | B36: Peso chileno
A37: CNY | B37: Yuan chino
A38: COP | B38: Peso colombiano
A39: COU | B39: Unidad de valor real
A40: CRC | B40: Colón costarricense
A41: CUC | B41: Peso convertible
A42: CUP | B42: Peso cubano
A43: CVE | B43: Escudo caboverdiano
A44: CZK | B44: Corona checa
A45: DJF | B45: Franco yibutiano
A46: DKK | B46: Corona danesa
A47: DOP | B47: Peso dominicano
A48: DZD | B48: Dinar argelino
A49: EGP | B49: Libra egipcia
A50: ERN | B50: Nakfa
A51: ETB | B51: Birr etíope
A52: FJD | B52: Dólar fiyiano
A53: FKP | B53: Libra malvinense
A54: GBP | B54: Libra esterlina
A55: GEL | B55: Lari
A56: GHS | B56: Cedi ghanés
A57: GIP | B57: Libra de Gibraltar
A58: GMD | B58: Dalasi
A59: GNF | B59: Franco guineano
A60: GTQ | B60: Quetzal
A61: GYD | B61: Dólar guyanés
A62: HKD | B62: Dólar de Hong Kong
A63: HNL | B63: Lempira
A64: HRK | B64: Kuna
A65: HTG | B65: Gourde
A66: HUF | B66: Forinto
A67: IDR | B67: Rupia indonesia
A68: ILS | B68: Nuevo shéquel israelí
A69: INR | B69: Rupia india
A70: IQD | B70: Dinar iraquí
A71: IRR | B71: Rial iraní
A72: ISK | B72: Corona islandesa
A73: JMD | B73: Dólar jamaiquino
A74: JOD | B74: Dinar jordano
A75: JPY | B75: Yen
A76: KES | B76: Chelín keniano
A77: KGS | B77: Som
A78: KHR | B78: Riel
A79: KMF | B79: Franco comorense
A80: KPW | B80: Won norcoreano
A81: KRW | B81: Won
A82: KWD | B82: Dinar kuwaití
A83: KYD | B83: Dólar de las Islas Caimán
A84: KZT | B84: Tenge
A85: LAK | B85: Kip
A86: LBP | B86: Libra libanesa
A87: LKR | B87: Rupia de Sri Lanka
A88: LRD | B88: Dólar liberiano
A89: LSL | B89: Loti
A90: LYD | B90: Dinar libio
A91: MAD | B91: Dírham marroquí
A92: MDL | B92: Leu moldavo
A93: MGA | B93: Ariary malgache
A94: MKD | B94: Denar
A95: MMK | B95: Kyat
A96: MNT | B96: Tugrik
A97: MOP | B97: Pataca
A98: MRU | B98: Uguiya
A99: MUR | B99: Rupia de Mauricio
A100: MVR | B100: Rufiyaa
A101: MWK | B101: Kwacha
A102: MXN | B102: Peso mexicano
A103: MXV | B103: Unidad de Inversión (UDI) mexicana
A104: MYR | B104: Ringgit malayo
A105: MZN | B105: Metical mozambiqueño
A106: NAD | B106: Dólar namibio
A107: NGN | B107: Naira
A108: NIO | B108: Córdoba
A109: NOK | B109: Corona noruega
A110: NPR | B110: Rupia nepalí
A111: NZD | B111: Dólar neozelandés
A112: OMR | B112: Rial omaní
A113: PAB | B113: Balboa
A114: PEN | B114: Sol
A115: PGK | B115: Kina
A116: PHP | B116: Peso filipino
A117: PKR | B117: Rupia pakistaní
A118: PLN | B118: Złoty
A119: QAR | B119: Riyal qatarí
A120: RON | B120: Leu rumano
A121: RSD | B121: Dinar serbio
A122: RUB | B122: Rublo ruso
A123: RWF | B123: Franco ruandés
A124: SAR | B124: Riyal saudí
A125: SBD | B125: Dólar de las Islas Salomón
A126: SCR | B126: Rupia seychelense
A127: SDG | B127: Dinar sudanés
A128: SEK | B128: Corona sueca
A129: SGD | B129: Dólar de Singapur
A130: SHP | B130: Libra de Santa Elena
A131: SLL | B131: Leone
A132: SOS | B132: Chelín somalí
A133: SRD | B133: Dólar surinamés
A134: SSP | B134: Libra sursudanesa
A135: STN | B135: Dobra
A136: SVC | B136: Colon Salvadoreño
A137: SYP | B137: Libra siria
A138: SZL | B138: Lilangeni
A139: THB | B139: Baht
A140: TJS | B140: Somoni tayiko
A141: TMT | B141: Manat turcomano
A142: TND | B142: Dinar tunecino
A143: TOP | B143: Paʻanga
A144: TRY | B144: Lira turca
A145: TTD | B145: Dólar de Trinidad y Tobago
A146: TWD | B146: Nuevo dólar taiwanés
A147: TZS | B147: Chelín tanzano
A148: UAH | B148: Grivna
A149: UGX | B149: Chelín ugandés
A150: USN | B150: Dólar estadounidense (Siguiente día)
A151: UYI | B151: Peso en Unidades Indexadas (Uruguay)
A152: UYU | B152: Peso uruguayo
A153: UYW | B153: Unidad Previsional
A154: UZS | B154: Som uzbeko
A155: VES7​ | B155: Bolívar soberano
A156: VND | B156: Dong vietnamita
A157: VUV | B157: Vatu
A158: WST | B158: Tala
A159: XAF | B159: Franco CFA de África Central
A160: XAG | B160: Plata (una onza troy)
A161: XAU | B161: Oro (una onza troy)
A162: XBA | B162: Unidad compuesta europea (EURCO) (Unidad del mercados de bonos)
A163: XBB | B163: Unidad Monetaria europea (E.M.U.-6) (Unidad del mercado de bonos)
A164: XBC | B164: Unidad europea de cuenta 9 (E.U.A.-9) (Unidad del mercado de bonos)
A165: XBD | B165: Unidad europea de cuenta 17 (E.U.A.-17) (Unidad del mercado de bonos)
A166: XCD | B166: Dólar del Caribe Oriental
A167: XDR | B167: Derechos especiales de giro
A168: XOF | B168: Franco CFA de África Occidental
A169: XPD | B169: Paladio (una onza troy)
A170: XPF | B170: Franco CFP
A171: XPT | B171: Platino (una onza troy)
A172: XSU | B172: SUCRE
A173: XTS | B173: Reservado para pruebas
A174: XUA | B174: Unidad de cuenta BAD
A175: XXX | B175: Sin divisa
A176: YER | B176: Rial yemení
A177: ZAR | B177: Rand
A178: ZMW | B178: Kwacha zambiano
A179: ZWL | B179: Dólar zimbabuense
